Cogmind - Beta 10 X1 @@@ ROGUE MODE // 2020.06.15 @ 02:06:10 Player: cptwinky Result: Destroyed by MAIN.C with Omega Cannon Performance ------------- Evolutions (9) 4500 Regions Visited (36) 7200 Robots Destroyed (182) 910 Value Destroyed (7802) 7802 Prototype IDs (81) 1620 Alien Tech Used (16) 3200 Bonus (11836) 11836 TOTAL SCORE: 37068 Bonus ------- High Alert Combat Kills 364 Follower Combat Kills 372 Met Data Miner 300 Met Zhirov 300 Hacked Protovariant 500 Met MAIN.C 5000 Destroyed MAIN.C Shell 5000 Cogmind --------- Core Integrity 0/1600 Matter 155/300 Energy 600/600 System Corruption 0% Temperature Cool (0) Movement Core (50) Location -1/Command Parts ------- > --- POWER (2) -------- (None) > --- PROPULSION (8) --- (None) > --- UTILITY (14) ----- Experimental Signal Interpreter Experimental Terrain Scan Processor Experimental Armor Integrity Analyzer Experimental Transmission Jammer Experimental System Shield > --- WEAPON (2) ------- (None) > --- INVENTORY (6) ---- Large Storage Unit Large Storage Unit Experimental Sensor Array Experimental Terrain Scanner Compact HERF Cannon Peak State ------------ > --- POWER ------------ Vortex Chain Reactor > --- PROPULSION ------- Impulse Thruster Array Impulse Thruster Array Impulse Thruster Array Impulse Thruster Array > --- UTILITY ---------- Large Storage Unit Large Storage Unit Advanced Energy Well Gravity Neutralizing Apparatus Experimental Signal Interpreter Experimental Terrain Scan Processor Experimental Armor Integrity Analyzer Femtoactuators Experimental Transmission Jammer Advanced Reaction Control System Experimental Weapon Shielding Layered Medium Armor Plating AEGIS Remote Shield Experimental System Shield > --- WEAPON ----------- Sigix Broadsword > --- INVENTORY -------- Vortex Chain Reactor Cooled Impulse Thruster Large Storage Unit Experimental Sensor Array Experimental Terrain Scanner High-powered Transdimensional Reconstructor High-powered Transdimensional Reconstructor Core Regenerator Subatomic Replicator Sigix Quantum Sheargun Sigix Quantum Sheargun Compact HERF Cannon Enhanced Nova Cannon Improved Potential Cannon Core Stripper [Rating: 226] Favorites ----------- Power Micro Fission Core Engine Light Angular Momentum Engine Power Core Micro Fission Core Reactor Vortex Chain Reactor Propulsion Improved VTOL Module Treads Light Treads Leg Improved Titanium Leg Wheel Compact Wheel Flight Unit Improved VTOL Module Utility Advanced Hacking Suite Device Experimental Sensor Array Storage Large Storage Unit Processor Experimental Signal Interpreter Hackware Advanced Hacking Suite Protection Hardened Medium Armor Plating Weapon Advanced Datajack Energy Gun Medium Laser Energy Cannon EM Pulse Cannon Ballistic Gun Light Assault Rifle Launcher Mini Grenade Launcher Impact Weapon Core Stripper Slashing Weapon Katana Piercing Weapon Lance Special Melee Weapon Advanced Datajack Build | -11 -10 -10 -10 -9 -8 -7 -7 -7 -7 -7 -7 -6 -6 -6 -6 -6 -5 -5 -5 -5 -5 -4 -4 -4 -4 -4 -4 -4 -3 -3 -3 -2 -2 -2 -1 -1 ------- Run | Scr Mat Min Exi Min Mat Fac Was Fac Low Low Zio Pro Fac Low Low Dat Pro Fac Upp Upp Zhi Pro Fac Was Fac Upp Upp War Pro Res Tes Res Qua Sec Acc Com Slots Evolved 18 | . . . . . 4 2 . . . . . . 2 . . . . 2 . . . . 2 . . . . . . 2 . 2 . . 2 . Power 1 | . . . . . . . . . . . . . . . . . . 1 . . . . . . . . . . . . . . . . . . Propulsion 5 | . . . . . 1 1 . . . . . . . . . . . 1 . . . . 1 . . . . . . . . 1 . . . . Utility 12 | . . . . . 3 1 . . . . . . 2 . . . . . . . . . 1 . . . . . . 2 . 1 . . 2 . Weapon . | . . . . . . . . . . . . . . . . . . . . . . . . . . . . . . . . . . . . . Parts Attached 449 | 7 6 1 . 3 45 12 . 5 2 3 10 3 35 4 2 4 6 56 3 5 4 5 34 1 36 6 3 7 9 17 31 9 22 32 4 17 Power 26 | 1 . . . . 5 2 . . . . 1 . 1 . . . . 9 . . . . 3 . 1 . . . . . . 1 1 . . 1 Engine 7 | 1 . . . . 4 1 . . . . 1 . . . . . . . . . . . . . . . . . . . . . . . . . Core 16 | . . . . . 1 1 . . . . . . 1 . . . . 9 . . . . 3 . 1 . . . . . . . . . . . Reactor 3 | . . . . . . . . . . . . . . . . . . . . . . . . . . . . . . . . 1 1 . . 1 Propulsion 50 | 2 1 . . . 13 1 . . . . . . 2 . . . . 7 . . 1 . 7 . 2 . . 2 . 3 4 1 1 1 1 1 Treads 5 | 1 . . . . 4 . . . . . . . . . . . . . . . . . . . . . . . . . . . . . . . Leg 5 | . . . . . 5 . . . . . . . . . . . . . . . . . . . . . . . . . . . . . . . Wheel 3 | 1 1 . . . 1 . . . . . . . . . . . . . . . . . . . . . . . . . . . . . . . Hover . | . . . . . . . . . . . . . . . . . . . . . . . . . . . . . . . . . . . . . Flight 37 | . . . . . 3 1 . . . . . . 2 . . . . 7 . . 1 . 7 . 2 . . 2 . 3 4 1 1 1 1 1 Utility 251 | 2 2 . . . 17 4 . 5 2 1 4 3 18 4 2 2 5 33 2 3 3 3 18 1 26 4 3 3 5 11 21 6 9 20 3 6 Device 167 | . . . . . 2 . . 2 1 1 3 2 10 2 2 . 2 23 1 3 1 2 14 1 22 3 3 2 5 7 18 4 6 20 3 2 Storage 20 | 2 2 . . . 4 . . . . . . . 1 . . . . 4 . . 1 . 1 . . . . . . . 1 2 1 . . 1 Processor 7 | . . . . . . 1 . 1 . . . . 1 . . . 1 1 . . . . . . . . . . . 1 . . . . . 1 Hackware 22 | . . . . . 3 3 . 1 . . . . 2 . . . . 2 . . . 1 3 . 3 . . . . 1 1 . 2 . . . Protection 35 | . . . . . 8 . . 1 1 . 1 1 4 2 . 2 2 3 1 . 1 . . . 1 1 . 1 . 2 1 . . . . 2 Artifact . | . . . . . . . . . . . . . . . . . . . . . . . . . . . . . . . . . . . . . Weapon 122 | 2 3 1 . 3 10 5 . . . 2 5 . 14 . . 2 1 7 1 2 . 2 6 . 7 2 . 2 4 3 6 1 11 11 . 9 Energy Gun 8 | 1 2 . . 1 . . . . . . 1 . . . . . . 1 . . . . . . . . . . . . . . . . . 2 Energy Cannon 13 | . . . . . 2 . . . . . . . . . . . . . . . . . . . . . . . . . 1 . 2 5 . 3 Ballistic Gun 9 | 1 . 1 . 1 6 . . . . . . . . . . . . . . . . . . . . . . . . . . . . . . . Ballistic Cannon . | . . . . . . . . . . . . . . . . . . . . . . . . . . . . . . . . . . . . . Launcher 15 | . 1 . . 1 2 . . . . 1 1 . . . . . . . . . . . 1 . 2 1 . . 2 1 1 . . . . 1 Special Weapon . | . . . . . . . . . . . . . . . . . . . . . . . . . . . . . . . . . . . . . Impact Weapon 4 | . . . . . . . . . . . . . . . . . . . . . . 1 . . . . . . . . . . 2 . . 1 Slashing Weapon 29 | . . . . . . 3 . . . 1 2 . 7 . . 1 . 1 . . . . . . . . . . . . . . 6 6 . 2 Piercing Weapon 21 | . . . . . . . . . . . 1 . 1 . . 1 1 2 . . . . 2 . 4 1 . . 2 2 4 . . . . . Special Melee Weapon 23 | . . . . . . 2 . . . . . . 6 . . . . 3 1 2 . 1 3 . 1 . . 2 . . . 1 1 . . . Unidentified Prototypes 17 | . . . . . 2 . . . . . 1 . . . . . . 2 . . 3 . . . . . . 2 . . 2 . 1 3 . 1 Parts Lost 36 | . . . . . 4 . . . . . . . . . . . 2 6 . . . . 1 . . . . . . 2 . . . . . 21 Power 4 | . . . . . 2 . . . . . . . . . . . . . . . . . . . . . . . . . . . . . . 2 Propulsion 7 | . . . . . . . . . . . . . . . . . . 2 . . . . . . . . . . . . . . . . . 5 Utility 14 | . . . . . 1 . . . . . . . . . . . 2 2 . . . . 1 . . . . . . 1 . . . . . 7 Weapon 11 | . . . . . 1 . . . . . . . . . . . . 2 . . . . . . . . . . . 1 . . . . . 7 Highest Loss Streak 21 | . . . . . 3 . . . . . . . . . . . 2 1 . . . . 1 . . . . . . 1 . . . . . 21 Average Slot Usage (%) 89 | . 100 100 100 100 94 92 92 92 92 92 99 100 95 93 93 93 90 86 84 88 86 88 89 89 88 89 89 88 89 89 83 77 77 76 75 71 Engine 2 | . 14 14 14 14 8 7 7 7 7 7 7 7 . . . . . . . . . . . . . . . . . . . . . . . . Core 5 | . . . . . . . . . . . . . 5 6 6 6 6 10 11 11 11 11 10 10 10 10 10 10 10 9 9 . . . . . Treads 1 | . 14 14 14 14 10 . . . . . . . . . . . . . . . . . . . . . . . . . . . . . . . Flight 19 | . . . . . . 30 30 30 30 30 30 30 22 20 20 20 20 15 17 17 17 17 21 21 20 21 21 21 21 18 17 17 16 16 15 14 Device 6 | . . . . . 1 7 7 6 7 7 6 5 5 12 12 4 8 10 11 11 9 11 5 5 4 5 5 5 5 4 7 11 8 7 14 15 Storage 10 | . 28 28 28 28 26 7 7 7 7 7 7 7 6 6 6 6 6 5 11 11 11 11 10 10 10 10 10 10 10 9 10 13 13 12 11 10 Processor 5 | . . . . . . 7 7 7 7 7 7 7 6 6 6 6 5 5 5 5 5 5 5 5 5 5 5 5 5 9 9 8 8 8 7 8 Hackware 21 | . . . . . . 23 23 23 23 23 23 23 32 26 26 26 26 22 17 17 17 17 26 26 26 26 26 26 26 26 23 17 20 20 19 12 Protection 1 | . . . . . 12 . . . . . . 1 . . . 8 3 . . . . . . . . . . . . . . . . . . 2 Ballistic Gun 1 | . 14 14 14 26 12 . . . . . . . . . . . . . . . . . . . . . . . . . . . . . . . Launcher 1 | . . . . 2 . . . . . 3 6 7 6 6 6 6 6 1 . . . . . . . . . . . . . . . . . . Slashing Weapon 2 | . . . . . . 7 7 7 7 3 6 7 5 6 6 4 . . 5 5 5 5 . . . . . . . . . . 3 3 3 2 Piercing Weapon 2 | . . . . . . . . . . . . . . . . 2 5 4 . . . . 4 5 4 4 5 5 4 4 3 4 . . . . Special Melee Weapon 1 | . . . . . . . . . . . . . . . . . . 2 1 5 5 5 5 5 5 5 5 4 5 4 . . . . . . Naked Turns . | . . . . . . . . . . . . . . . . . . . . . . . . . . . . . . . . . . . . . Heaviest Build 120 | 14 54 53 53 53 95 20 20 22 22 22 23 23 32 32 32 32 32 48 52 49 52 49 52 51 55 55 55 55 52 61 66 92 97 95 97 120 Greatest Support 120 | 10 16 16 16 16 60 24 24 24 24 24 24 24 34 34 34 34 34 49 49 49 49 49 64 64 64 64 64 68 68 72 81 92 109 104 120 120 Greatest Overweight (x) 5 | 1 5 3 3 3 5 . . . . . . . . . . . . . 1 . 1 . . . . . . . . . . . . . . 4 Average Overweight (x) . | . 2 3 3 3 3 . . . . . . . . . . . . . . . . . . . . . . . . . . . . . . . Largest Inventory Capacity 24 | 8 18 18 18 18 24 8 8 8 8 8 8 8 10 10 10 10 10 16 16 16 16 16 16 16 16 16 16 16 16 16 20 20 22 24 24 24 Average Capacity 13 | 5 14 18 18 18 23 8 8 8 8 8 8 8 8 10 10 10 10 10 16 16 16 16 16 16 16 16 16 16 16 16 17 20 21 22 24 21 Most Carried 24 | 4 18 18 18 18 24 8 8 8 8 8 8 8 10 10 10 10 10 12 16 16 16 16 16 16 16 16 16 16 16 16 20 20 22 24 24 24 Average Carried 13 | 2 11 17 17 17 21 7 8 7 8 8 7 8 8 10 10 10 10 9 14 16 15 16 15 16 15 16 16 15 16 15 16 18 20 21 22 20 Final Capacity 24 | 8 18 18 18 18 8 8 8 8 8 8 8 8 10 10 10 10 10 16 16 16 16 16 16 16 16 16 16 16 16 16 20 20 22 24 24 6 Final Carried 24 | 4 18 18 18 18 8 8 8 8 8 8 8 8 10 10 10 10 10 12 16 16 16 16 16 16 16 16 16 16 16 16 20 20 22 24 24 5 Class Distribution -------------------- 44% | Wizard-Sprinter 29% | Hacker-Sprinter 8% | Hacker-Mutant 6% | Hauler-Mutant 4% | Mutant 3% | Wizard-Ninja Dominant Class ---------------- Mutant | -10/Materials Mutant | -10/Mines Mutant | -10/Exiles Mutant | -9/Mines Hauler-Mutant | -8/Materials Hacker-Sprinter | -7/Factory Hacker-Sprinter | -7/Waste Hacker-Sprinter | -7/Factory Hacker-Sprinter | -7/Lower Caves Hacker-Sprinter | -7/Lower Caves Hacker-Sprinter | -7/Zion Hacker-Sprinter | -6/Proximity Caves Wizard-Sprinter | -6/Factory Hacker-Scout | -6/Lower Caves Hacker-Scout | -6/Lower Caves Hacker-Scout | -6/Data Miner Hacker-Scout | -5/Proximity Caves Hacker-Sprinter | -5/Factory Hacker-Mutant | -5/Upper Caves Hacker-Mutant | -5/Upper Caves Hacker-Sprinter | -5/Zhirov Hacker-Sprinter | -4/Proximity Caves Wizard-Sprinter | -4/Factory Wizard-Sprinter | -4/Waste Wizard-Sprinter | -4/Factory Wizard-Sprinter | -4/Upper Caves Wizard-Sprinter | -4/Upper Caves Wizard-Sprinter | -4/Warlord Wizard-Sprinter | -3/Proximity Caves Wizard-Sprinter | -3/Research Wizard-Sprinter | -3/Testing Wizard-Ninja | -2/Research Wizard-Sprinter | -2/Quarantine Wizard-Sprinter | -2/Section 7 Wizard-Ninja | -1/Access Wizard-Sprinter | -1/Command Resources | -11 -10 -10 -10 -9 -8 -7 -7 -7 -7 -7 -7 -6 -6 -6 -6 -6 -5 -5 -5 -5 -5 -4 -4 -4 -4 -4 -4 -4 -3 -3 -3 -2 -2 -2 -1 -1 ----------- Run | Scr Mat Min Exi Min Mat Fac Was Fac Low Low Zio Pro Fac Low Low Dat Pro Fac Upp Upp Zhi Pro Fac Was Fac Upp Upp War Pro Res Tes Res Qua Sec Acc Com Matter Collected 5367 | 276 101 31 5 49 745 128 . 50 10 50 62 33 355 50 40 . 48 587 30 60 40 20 485 . 350 109 101 . 220 109 216 91 407 254 225 30 Remotely . | . . . . . . . . . . . . . . . . . . . . . . . . . . . . . . . . . . . . . Salvage Created 8827 | 75 556 . . 64 1968 149 . 134 . . . . 566 66 . . . 458 . . 111 . 1363 . 610 100 . . 94 189 228 91 408 144 277 1176 Parts 371 | 2 40 . . 6 94 13 . 12 . . . . 24 . . . . 26 . . . . 51 . 28 . . . 7 13 11 5 4 2 12 21 Haulers Intercepted 13 | . . . . . 4 . . . . . . . 2 . . . . 1 . . . . 4 . 2 . . . . . . . . . . . Recyclers Shooed 4 | . 1 . . . 1 . . . . . . . . . . . . . . . . . . . . . . . . . 1 . 1 . . . Parts Field Recycled . | . . . . . . . . . . . . . . . . . . . . . . . . . . . . . . . . . . . . . Retrieved Matter . | . . . . . . . . . . . . . . . . . . . . . . . . . . . . . . . . . . . . . Parts Self-Destructed 14 | . . . . . . . . . . . . 1 . . . . . . . . . . . . . . . . 13 . . . . . . . Prevented 3 | . . . . . . . . . . 2 . 1 . . . . . . . . . . . . . . . . . . . . . . . . Kills | -11 -10 -10 -10 -9 -8 -7 -7 -7 -7 -7 -7 -6 -6 -6 -6 -6 -5 -5 -5 -5 -5 -4 -4 -4 -4 -4 -4 -4 -3 -3 -3 -2 -2 -2 -1 -1 ------- Run | Scr Mat Min Exi Min Mat Fac Was Fac Low Low Zio Pro Fac Low Low Dat Pro Fac Upp Upp Zhi Pro Fac Was Fac Upp Upp War Pro Res Tes Res Qua Sec Acc Com Combat Hostiles Destroyed 109 | . 14 . . 4 31 . . . . . . . 2 . . . . 4 . . . . 23 . 8 3 . . 6 2 1 . 1 1 . 9 Melee 9 | . . . . . . . . . . . . . 1 . . . . 2 . . . . 1 . . . . . . . 1 . . 1 . 3 Guns 22 | . 12 . . . 10 . . . . . . . . . . . . . . . . . . . . . . . . . . . . . . . Cannons 9 | . . . . . 9 . . . . . . . . . . . . . . . . . . . . . . . . . . . . . . . AOE 64 | . 2 . . 4 10 . . . . . . . . . . . . 2 . . . . 22 . 8 3 . . 6 1 . . . . . 6 Classes Destroyed 19 | 1 4 . . . 5 . . . . . . . 1 . . . . 1 . . . . 4 . 1 . . . . . . . 2 . . . Worker 2 | . . . . . 2 . . . . . . . . . . . . . . . . . . . . . . . . . . . . . . . Builder 3 | . . . . . 1 . . . . . . . . . . . . . . . . . . . 1 . . . . . 1 . . . . . Tunneler 1 | . . . . . . . . . . . . . . . . . . . . . . . 1 . . . . . . . . . . . . . Hauler 13 | . . . . . 4 . . . . . . . 2 . . . . 1 . . . . 4 . 2 . . . . . . . . . . . Recycler 8 | 1 . . . . 3 . . . . . . . 1 . . . . . . . . . . . 1 . . . . . 1 . . . 1 . Mechanic 1 | . . . . . . . . . . . . . . . . . . . . . . . . . 1 . . . . . . . . . . . Operator 6 | . 2 . . . 2 1 . . . . . . . . . . . . . . . . 1 . . . . . . . . . . . . . Watcher 36 | . 1 . . . 1 4 . 5 . . . . 3 . . . . 6 . . . . 3 . 4 . . . . 1 1 2 . 1 4 . Swarmer 37 | . 3 . . 4 3 . . . . . . . . . . . . 2 . . . . 5 . 8 . . . 6 . . . . . . 6 Saboteur 1 | . . . . . . . . . . . . . . . . . . . . . . . 1 . . . . . . . . . . . . . Grunt 49 | . 11 . . . 22 . . . . . . . 1 . . . . 1 . . . . 9 . . 3 . . . . . . . 1 . 1 Brawler 2 | . . . . . . . . . . . . . . . . . . . . . . . 2 . . . . . . . . . . . . . Protector 1 | . . . . . . . . . . . . . . . . . . . . . . . 1 . . . . . . . . . . . . . Researcher 1 | . . . . . . . . . . . . . . . . . . . . . . . . . . . . . . . . . 1 . . . Sentry 5 | . . . . . 5 . . . . . . . . . . . . . . . . . . . . . . . . . . . . . . . Hunter 2 | . . . . . 1 . . . . . . . . . . . . . . . . . 1 . . . . . . . . . . . . . Programmer 8 | . . . . . . . . . . . . . . . . . . 1 . . . . 4 . . . . . . 1 1 . . . . 1 Behemoth 2 | . . . . . . . . . . . . . 1 . . . . . . . . . . . . . . . . 1 . . . . . . Fortress 1 | . . . . . . . . . . . . . . . . . . . . . . . . . . . . . . . . . 1 . . . Decomposer 2 | . . . . . . . . . . . . . . . . . . . . . . . . . . 2 . . . . . . . . . . Best Kill Streak 7 | 1 3 . . 4 5 1 . 1 . . . . 1 . . . . 2 . . . . 7 . 4 3 . . 5 2 1 1 2 1 1 6 Combat Bots Only 6 | . 3 . . 4 5 . . . . . . . 1 . . . . 2 . . . . 6 . 4 3 . . 5 1 1 . 1 1 . 6 Max Kills in Single Turn 7 | 1 2 . . 2 2 1 . 1 . . . . 1 . . . . 2 . . . . 7 . 3 2 . . 3 1 1 1 1 1 1 3 Gunslinging 1 | . 1 . . . . . . . . . . . . . . . . . . . . . . . . . . . . . . . . . . . Exploded 6 | . 1 . . 2 2 . . . . . . . . . . . . 2 . . . . 6 . 3 2 . . 3 1 . . . . . 3 Melee 1 | . . . . . . . . . . . . . 1 . . . . 1 . . . . 1 . . . . . . . 1 . . 1 . 1 Uniques/NPCs Destroyed 1 | . . . . . . . . . . . . . . . . . . . . . . . . . . . . . . . . . . . . 1 MAIN.C Shell (-1/Command) Combat | -11 -10 -10 -10 -9 -8 -7 -7 -7 -7 -7 -7 -6 -6 -6 -6 -6 -5 -5 -5 -5 -5 -4 -4 -4 -4 -4 -4 -4 -3 -3 -3 -2 -2 -2 -1 -1 -------- Run | Scr Mat Min Exi Min Mat Fac Was Fac Low Low Zio Pro Fac Low Low Dat Pro Fac Upp Upp Zhi Pro Fac Was Fac Upp Upp War Pro Res Tes Res Qua Sec Acc Com Damage Taken 10654 | . 241 . . 61 1969 36 . 15 . . . . 84 . . 142 488 759 . 20 . . 336 . 161 . . . . 397 93 107 173 510 . 5062 Core 2388 | . 6 . . 16 139 30 . . . . . . 31 . . . 153 183 . . . . 42 . 73 . . . . 48 23 . 20 50 . 1574 Absorbed by Shields 1984 | . . . . . . . . . . . . . . . . . . . . . . . . . . . . . . . . . . . . 1984 Core Remaining (%) 87 | 100 . . . 91 74 . . . . . . 95 . . . . 78 . . . . 81 . . . . . . 90 . 94 . . 82 . . Volleys Fired 239 | 6 37 . . 2 141 . . . . 1 . . . . . . . 2 . . . . 7 . 5 6 . . 3 . 1 . 4 10 . 14 Largest 2 | 2 2 . . 1 2 . . . . 1 . . . . . . . 1 . . . . 1 . 1 1 . . 1 . 1 . 1 1 . 2 Hottest 200 | 70 70 . . 33 91 . . . . 30 . . . . . . . 30 . . . . 43 . 80 80 . . 80 . 80 . 120 120 . 200 Shots Fired 362 | 12 70 . . 2 217 . . . . 1 . . . . . . . 2 . . . . 7 . 5 6 . . 3 . 1 . 4 10 . 22 Gun 235 | 12 67 . . . 140 . . . . . . . . . . . . . . . . . . . . . . . . . . . . . . 16 Cannon 90 | . . . . . 73 . . . . . . . . . . . . . . . . . . . . . . . . . . . 4 10 . 3 Launcher 37 | . 3 . . 2 4 . . . . 1 . . . . . . . 2 . . . . 7 . 5 6 . . 3 . 1 . . . . 3 Special . | . . . . . . . . . . . . . . . . . . . . . . . . . . . . . . . . . . . . . Kinetic 180 | 6 34 . . . 140 . . . . . . . . . . . . . . . . . . . . . . . . . . . . . . . Thermal 56 | 6 33 . . . . . . . . . . . . . . . . . . . . . . . . . . . . . . . 4 10 . 3 Explosive 32 | . . . . . 4 . . . . 1 . . . . . . . 2 . . . . 7 . 5 6 . . 3 . 1 . . . . 3 Electromagnetic 78 | . 3 . . 2 73 . . . . . . . . . . . . . . . . . . . . . . . . . . . . . . . Slashing 16 | . . . . . . . . . . . . . . . . . . . . . . . . . . . . . . . . . . . . 16 Robot Hit Streak 21 | 11 21 . . 1 18 . . . . . . . . . . . . 4 . . . . 5 . . . . . . . . . . . . 5 Robot Miss Streak 5 | . 3 . . 3 5 . . . . . . . . . . . . . . . . . 1 . . . . . . . . . . . . 2 Penetration Max 1 | . . . . . . . . . . . . . . . . . . . . . . . . . . . . . . . . . . . . 1 Secondary Targets 1 | . 1 . . . . . . . . . . . . . . . . . . . . . . . . . . . . . . . . . . . Max Gunslinging Chain 1 | . 1 . . . . . . . . . . . . . . . . . . . . . . . . . . . . . . . . . . . Shots Hit Robots 414 | 11 54 . . 1 153 12 . 7 . . . . 22 2 . 1 . 23 . . 2 . 22 . 19 2 . 5 1 2 8 7 3 5 6 46 Core Hits 308 | 2 31 . . 4 80 5 . 5 . 2 . . 9 1 . . . 15 . . 2 . 67 . 20 11 . . 12 2 5 3 1 2 5 24 Critical Hits 17 | . 1 . . . 1 . . . . . . . 1 . . 1 . . . . . . . . 1 . . . . . 2 1 1 1 1 6 Critical Kills 8 | . 1 . . . . . . . . . . . 1 . . . . . . . . . . . 1 . . . . . . 1 1 1 1 1 Critical Parts Destroyed 7 | . . . . . 1 . . . . . . . . . . 1 . . . . . . . . . . . . . . 2 . . . . 3 Melee Attacks 937 | . . . . . . 91 . 70 9 . 1 . 84 15 21 8 19 187 5 6 2 11 68 . 57 4 4 12 4 25 53 32 19 39 24 67 Kinetic 1 | . . . . . . . . . . . . . . . . . . . . . . . . . . . . . . . . . 1 . . . Impact . | . . . . . . . . . . . . . . . . . . . . . . . . . . . . . . . . . . . . . Slashing 492 | . . . . . . 90 . 70 9 . . . 80 15 21 6 . 17 5 6 2 11 15 . . . . . . . . . 15 39 24 67 Piercing 432 | . . . . . . . . . . . 1 . 1 . . 2 19 169 . . . . 52 . 57 4 4 7 3 25 53 32 3 . . . Sneak Attacks 41 | . . . . . . 2 . . . . . . 7 . . 1 . 3 . . . . 6 . 5 2 . 5 1 . 2 2 2 . 3 . Combat Hostiles 4 | . . . . . . . . . . . . . 2 . . . . . . . . . 2 . . . . . . . . . . . . . Follow-up Attacks . | . . . . . . . . . . . . . . . . . . . . . . . . . . . . . . . . . . . . . Damage Inflicted 25629 | 90 820 . . 109 3428 531 . 270 . 58 . . 965 157 . 164 . 1026 . . 216 . 5537 . 2316 1048 . . 686 344 810 546 389 478 967 4674 Guns 2275 | 90 598 . . . 980 . . . . . . . . . . . . . . . . . . . . . . . . . . . . . . 607 Cannons 1698 | . . . . . 1638 . . . . . . . . . . . . . . . . . . . . . . . . . . . . . . 60 Explosions 9424 | . 222 . . 109 810 . . . . 58 . . . . . . . 163 . . . . 4376 . 1088 695 . . 686 265 48 . . . . 904 Melee 12232 | . . . . . . 531 . 270 . . . . 965 157 . 164 . 863 . . 216 . 1161 . 1228 353 . . . 79 762 546 389 478 967 3103 Ramming . | . . . . . . . . . . . . . . . . . . . . . . . . . . . . . . . . . . . . . Kinetic 1262 | 40 242 . . . 980 . . . . . . . . . . . . . . . . . . . . . . . . . . . . . . . Thermal 3218 | 50 401 . . 21 172 . . . . . . . . . . . . . . . . . 2514 . . . . . . . . . . . . 60 Explosive 5910 | . . . . . 638 . . . . 58 . . . . . . . 163 . . . . 1365 . 1088 695 . . 686 265 48 . . . . 904 Electromagnetic 2400 | . 177 . . 88 1638 . . . . . . . . . . . . . . . . . 497 . . . . . . . . . . . . . Impact . | . . . . . . . . . . . . . . . . . . . . . . . . . . . . . . . . . . . . . Slashing 8626 | . . . . . . 531 . 270 . . . . 965 157 . . . 349 . . 216 . 594 . . . . . . . . . 389 478 967 3710 Piercing 4213 | . . . . . . . . . . . . . . . . 164 . 514 . . . . 567 . 1228 353 . . . 79 762 546 . . . . Highest Corruption 10 | . 3 3 3 3 1 . . . . . . . 1 . . . 4 2 . . . . 2 10 10 . . . . 2 3 2 2 3 . . Average Corruption 2 | . 2 3 3 3 1 . . . . . . . 1 . . . 4 1 . . . . 1 10 4 . . . . 1 2 1 2 2 . . Corruption Purged 19 | . . . . . . . . . . . . . 1 . . . . 5 . . . . 2 . 11 . . . . . . . . . . . Effects 118 | . 6 2 5 2 2 . . . . . . . 1 . . . . 8 . . . . 8 1 44 . . . . . 21 . 7 11 . . Message Errors 36 | . 1 1 1 . . . . . . . . . . . . . . 3 . . . . 5 1 13 . . . . . 4 . 4 3 . . Matter Fused 13 | . 2 . 2 1 . . . . . . . . . . . . . . . . . . . . 5 . . . . . 2 . . 1 . . Heat Flow Errors 15 | . 1 1 . . . . . . . . . . . . . . . 1 . . . . . . 5 . . . . . 4 . 1 2 . . Energy Discharges 20 | . . . 1 1 . . . . . . . . 1 . . . . 1 . . . . 2 . 6 . . . . . 5 . . 3 . . Data Loss (minor) 14 | . . . 1 . 1 . . . . . . . . . . . . 1 . . . . 1 . 2 . . . . . 4 . 2 2 . . Data Loss (major) 3 | . . . . . . . . . . . . . . . . . . . . . . . . . 3 . . . . . . . . . . . Misdirections 8 | . . . . . . . . . . . . . . . . . . . . . . . . . 8 . . . . . . . . . . . Targeting Errors 9 | . 2 . . . 1 . . . . . . . . . . . . 2 . . . . . . 2 . . . . . 2 . . . . . Overload Shots . | . . . . . . . . . . . . . . . . . . . . . . . . . . . . . . . . . . . . . Overflow Damage 1996 | . . . . . 58 165 . 10 . . . . 153 19 . . . 64 . . . . 444 . 341 13 . . 5 18 157 50 123 150 . 226 Projectiles 52 | . . . . . 52 . . . . . . . . . . . . . . . . . . . . . . . . . . . . . . . Explosions 678 | . . . . . 6 . . . . . . . . . . . . . . . . . 408 . 186 13 . . 5 18 . . . . . 42 Melee 1266 | . . . . . . 165 . 10 . . . . 153 19 . . . 64 . . . . 36 . 155 . . . . . 157 50 123 150 . 184 Knockbacks . | . . . . . . . . . . . . . . . . . . . . . . . . . . . . . . . . . . . . . Impact . | . . . . . . . . . . . . . . . . . . . . . . . . . . . . . . . . . . . . . Kinetic . | . . . . . . . . . . . . . . . . . . . . . . . . . . . . . . . . . . . . . Secondary . | . . . . . . . . . . . . . . . . . . . . . . . . . . . . . . . . . . . . . Self-Inflicted Damage 269 | . . . . 23 81 . . . . . . . . . . . . 15 . . . . 30 . 14 . . . . . . . . . . 106 Shots 8 | . . . . 1 3 . . . . . . . . . . . . 1 . . . . 1 . 1 . . . . . . . . . . 1 Rammed . | . . . . . . . . . . . . . . . . . . . . . . . . . . . . . . . . . . . . . Targets Rammed . | . . . . . . . . . . . . . . . . . . . . . . . . . . . . . . . . . . . . . Kicked . | . . . . . . . . . . . . . . . . . . . . . . . . . . . . . . . . . . . . . Crushed . | . . . . . . . . . . . . . . . . . . . . . . . . . . . . . . . . . . . . . Highest Temperature 405 | 90 189 252 . 8 405 4 . 1 . . . . 3 . . . 2 233 . . . . . . 212 . . . 7 . 252 . 194 132 . 3 Average Temperature 79 | 45 59 162 . 6 84 4 . 1 . . . . 3 . . . 2 118 . . . . . . 91 . . . 4 . 109 . 116 56 . 2 Received Heat Transfer 1336 | . 108 . . . 837 9 . . . . . . 12 . . 18 9 99 . 9 . . 18 . 27 . . . . 33 . 9 9 27 . 112 Effects 3 | . . . . . 3 . . . . . . . . . . . . . . . . . . . . . . . . . . . . . . . Shutdowns 1 | . . . . . 1 . . . . . . . . . . . . . . . . . . . . . . . . . . . . . . . Interference 2 | . . . . . 2 . . . . . . . . . . . . . . . . . . . . . . . . . . . . . . . Siege Activations . | . . . . . . . . . . . . . . . . . . . . . . . . . . . . . . . . . . . . . Robots Corrupted 3 | . . . . . 3 . . . . . . . . . . . . . . . . . . . . . . . . . . . . . . . Combat Hostiles 2 | . . . . . 2 . . . . . . . . . . . . . . . . . . . . . . . . . . . . . . . Parts Fried 21 | . 1 . . . 9 . . . . . . . . . . . . . . . . . 11 . . . . . . . . . . . . . Impact Corruptions . | . . . . . . . . . . . . . . . . . . . . . . . . . . . . . . . . . . . . . Robots Melted . | . . . . . . . . . . . . . . . . . . . . . . . . . . . . . . . . . . . . . Combat Hostiles . | . . . . . . . . . . . . . . . . . . . . . . . . . . . . . . . . . . . . . Parts Melted 3 | 1 . . . 1 . . . . . . . . . . . . . . . . . . 1 . . . . . . . . . . . . . Heat Transferred 2915 | 148 1099 . . 50 150 . . . . . . . . . . . . . . . . . 1450 . . . . . . . . . . . . 18 Parts Sabotaged . | . . . . . . . . . . . . . . . . . . . . . . . . . . . . . . . . . . . . . Parts Stolen . | . . . . . . . . . . . . . . . . . . . . . . . . . . . . . . . . . . . . . Parts Stripped . | . . . . . . . . . . . . . . . . . . . . . . . . . . . . . . . . . . . . . Power Chain Reactions 9 | . 1 . . 1 3 . . . . . . . . . . . . . . . . . 4 . . . . . . . . . . . . . Missiles Intercepted . | . . . . . . . . . . . . . . . . . . . . . . . . . . . . . . . . . . . . . Alert | -11 -10 -10 -10 -9 -8 -7 -7 -7 -7 -7 -7 -6 -6 -6 -6 -6 -5 -5 -5 -5 -5 -4 -4 -4 -4 -4 -4 -4 -3 -3 -3 -2 -2 -2 -1 -1 ------- Run | Scr Mat Min Exi Min Mat Fac Was Fac Low Low Zio Pro Fac Low Low Dat Pro Fac Upp Upp Zhi Pro Fac Was Fac Upp Upp War Pro Res Tes Res Qua Sec Acc Com Peak Influence 1192 | 5 349 69 . 90 398 244 45 452 . . . . 481 . . . . 169 . . . . 1192 376 470 . . . . 155 136 524 100 223 208 349 Average Influence 115 | 1 144 69 . 85 155 38 22 85 . . . . 31 . . . . 46 . . . . 535 372 88 . . . . 22 80 150 34 70 109 147 Maximum Alert Level 4 | . 1 . . . 1 1 . 2 . . . . 2 . . . . . . . . . 4 1 2 . . . . . . 2 . 1 1 1 Low Security (%) 85 | 100 74 100 . 100 73 95 100 86 . . . . 98 . . . . 100 . . . . 34 . 83 . . . . 100 100 73 100 98 84 48 Level 1 7 | . 25 . . . 26 4 . 4 . . . . . . . . . . . . . . 2 100 15 . . . . . . 1 . 1 15 51 Level 2 3 | . . . . . . . . 9 . . . . 1 . . . . . . . . . 24 . . . . . . . . 25 . . . . Level 3 3 | . . . . . . . . . . . . . . . . . . . . . . . 33 . . . . . . . . . . . . . Level 4 . | . . . . . . . . . . . . . . . . . . . . . . . 5 . . . . . . . . . . . . . Level 5 . | . . . . . . . . . . . . . . . . . . . . . . . . . . . . . . . . . . . . . High Security . | . . . . . . . . . . . . . . . . . . . . . . . . . . . . . . . . . . . . . Max Security . | . . . . . . . . . . . . . . . . . . . . . . . . . . . . . . . . . . . . . Squads Dispatched 77 | . 5 1 . . 4 5 . 2 . . . . 6 . . . . 13 . . . . 11 . 6 . 1 . . 2 3 4 3 5 3 3 Investigation 33 | . 3 1 . . 1 3 . 1 . . . . 3 . . . . 7 . . . . 3 . . . 1 . . 1 1 3 2 1 2 . Extermination 21 | . . . . . . 2 . 1 . . . . 2 . . . . 5 . . . . 2 . 3 . . . . 1 1 1 . 2 . 1 Reinforcement 17 | . 2 . . . 3 . . . . . . . 1 . . . . 1 . . . . 2 . 2 . . . . . . . 1 2 1 2 Assault 6 | . . . . . . . . . . . . . . . . . . . . . . . 4 . 1 . . . . . 1 . . . . . Garrison . | . . . . . . . . . . . . . . . . . . . . . . . . . . . . . . . . . . . . . Intercept . | . . . . . . . . . . . . . . . . . . . . . . . . . . . . . . . . . . . . . Construction Impeded 2 | . . . . . . . . . . . . . . . . . . . . . . . 1 . 1 . . . . . . . . . . . Haulers Reinforced 1 | . . . . . . . . . . . . . . . . . . 1 . . . . . . . . . . . . . . . . . . Stealth | -11 -10 -10 -10 -9 -8 -7 -7 -7 -7 -7 -7 -6 -6 -6 -6 -6 -5 -5 -5 -5 -5 -4 -4 -4 -4 -4 -4 -4 -3 -3 -3 -2 -2 -2 -1 -1 --------- Run | Scr Mat Min Exi Min Mat Fac Was Fac Low Low Zio Pro Fac Low Low Dat Pro Fac Upp Upp Zhi Pro Fac Was Fac Upp Upp War Pro Res Tes Res Qua Sec Acc Com Distress Signals 14 | . . . . . 2 . . . . . . . . . . . . 2 . . . . 4 . . . . . . 2 1 . . 1 . 2 Communications Jammed 69 | . . . . . . . . . . . . . . . . . . 14 . . . . 13 . . . . . . . 5 3 . 26 . 8 Distress Signals 69 | . . . . . . . . . . . . . . . . . . 14 . . . . 13 . . . . . . . 5 3 . 26 . 8 Times Spotted 382 | . 24 . . 4 56 21 6 10 . 2 . 2 24 . 1 4 7 49 . 3 . . 38 3 22 . . . 2 15 10 8 13 23 4 31 Peak Tracking Total 10 | . 4 . . 4 7 5 6 2 . 3 . 1 5 . 3 4 3 6 . 3 . . 6 3 5 3 . . 2 5 2 3 6 10 1 10 Tactical Retreats 77 | . 1 . . . 6 7 . 1 . . . . 7 . 2 . 3 16 . 2 . . 10 . 6 . . . 1 4 . 1 2 5 . 3 Traps | -11 -10 -10 -10 -9 -8 -7 -7 -7 -7 -7 -7 -6 -6 -6 -6 -6 -5 -5 -5 -5 -5 -4 -4 -4 -4 -4 -4 -4 -3 -3 -3 -2 -2 -2 -1 -1 ------- Run | Scr Mat Min Exi Min Mat Fac Was Fac Low Low Zio Pro Fac Low Low Dat Pro Fac Upp Upp Zhi Pro Fac Was Fac Upp Upp War Pro Res Tes Res Qua Sec Acc Com Traps Triggered 24 | . 2 . . . 1 5 . 1 . . . . 1 . . . . 5 . . . . 3 . 5 . . . . 1 . . . . . . Indirectly . | . . . . . . . . . . . . . . . . . . . . . . . . . . . . . . . . . . . . . Trap Hack Attempts 79 | . . . . . . 1 . . . . . . 34 . . . . 6 . . . . 14 . 17 . . . . . . . 7 . . . Triggered 1 | . . . . . . . . . . . . . 1 . . . . . . . . . . . . . . . . . . . . . . . Disarmed 31 | . 7 . . . . . . . . . . . . . . . . . . . . . 12 . 7 . . . . . . . 5 . . . Reprogrammed 153 | . . . . . . 7 . . . . . . 15 . . . . 15 . . . . 35 . 7 . . . . 12 13 . 18 22 6 3 Reused 78 | . . . . . . 1 . . . . . . 5 . . . . 9 . . . . 8 . 5 . . . . 6 7 . 1 36 . . Traps Extracted . | . . . . . . . . . . . . . . . . . . . . . . . . . . . . . . . . . . . . . Installed . | . . . . . . . . . . . . . . . . . . . . . . . . . . . . . . . . . . . . . Triggered 81 | . . . . . . 1 . . . . . . 5 . 1 . . 11 . . . . 8 . 5 . . . . 6 7 . 1 36 . . Machines | -11 -10 -10 -10 -9 -8 -7 -7 -7 -7 -7 -7 -6 -6 -6 -6 -6 -5 -5 -5 -5 -5 -4 -4 -4 -4 -4 -4 -4 -3 -3 -3 -2 -2 -2 -1 -1 ---------- Run | Scr Mat Min Exi Min Mat Fac Was Fac Low Low Zio Pro Fac Low Low Dat Pro Fac Upp Upp Zhi Pro Fac Was Fac Upp Upp War Pro Res Tes Res Qua Sec Acc Com Machines Disabled 78 | . 1 . . . 3 2 . . . . . . . . . 1 . 2 . . . . 47 . 1 . . . . 2 5 . 5 8 . 1 Max in Single Turn 15 | . 1 . . . 1 1 . . . . . . . . . 1 . 1 . . . . 15 . 1 . . . . 1 1 . 1 1 . 1 Garrison Access 28 | . . . . . . 4 . 4 . . . . 3 . . . . 4 . . . . 4 . 3 . . . . 1 1 1 1 . 2 . Phase Generator 1 | . . . . . . . . . . . . . . . . . . . . . . . . . . . . . . . . . . . . 1 Machines Sabotaged . | . . . . . . . . . . . . . . . . . . . . . . . . . . . . . . . . . . . . . Garrisons Compromised . | . . . . . . . . . . . . . . . . . . . . . . . . . . . . . . . . . . . . . Overloaded Fab Kills 2 | . . . . . . . . . . . . . . . . . . . . . . . 2 . . . . . . . . . . . . . Fab Network Shutdowns 4 | . . . . . . . . 1 . . . . 1 . . . . . . . . . . . 1 . . . . . . 1 . . . . Hacking | -11 -10 -10 -10 -9 -8 -7 -7 -7 -7 -7 -7 -6 -6 -6 -6 -6 -5 -5 -5 -5 -5 -4 -4 -4 -4 -4 -4 -4 -3 -3 -3 -2 -2 -2 -1 -1 --------- Run | Scr Mat Min Exi Min Mat Fac Was Fac Low Low Zio Pro Fac Low Low Dat Pro Fac Upp Upp Zhi Pro Fac Was Fac Upp Upp War Pro Res Tes Res Qua Sec Acc Com Machines Accessed 263 | . 7 1 1 . 7 28 . 17 1 . . . 18 . . 4 . 30 1 1 4 1 30 . 24 . 2 . . 10 17 7 16 11 15 10 Terminals 140 | . 6 . . . 3 12 . 8 . . . . 8 . . . . 14 . . . 1 16 . 12 . 1 . . 4 10 5 13 8 10 9 Fabricators 33 | . . . . . . 5 . 4 . . . . 4 . . . . 5 . . . . 5 . 3 . . . . 3 2 1 . . 1 . Repair Stations 16 | . . . . . 1 2 . . . . . . . . . . . 4 . . . . 2 . 2 . . . . 1 1 . 1 1 . 1 Recycling Units 18 | . 1 . . . 1 4 . 1 . . . . 2 . . . . 2 . . . . 3 . 2 . . . . . . . . . 2 . Scanalyzers 14 | . . . . . 1 1 . . . . . . 1 . . . . 1 . . . . 1 . 2 . . . . 1 3 . 1 2 . . Garrison Access 28 | . . . . . 1 4 . 4 . . . . 3 . . . . 4 . . . . 3 . 3 . . . . 1 1 1 1 . 2 . Total Hacks 847 | . 29 1 1 . 30 70 . 34 1 . . . 66 . . 20 . 105 1 1 17 4 100 . 82 . 7 . . 37 65 25 47 38 42 24 Successful 663 | . 15 1 1 . 21 59 . 24 1 . . . 47 . . 20 . 83 1 1 17 2 79 . 69 . 4 . . 30 48 16 42 34 32 16 Failed 177 | . 14 . . . 9 10 . 9 . . . . 19 . . . . 21 . . . 2 21 . 13 . 2 . . 6 17 9 4 4 9 8 Catastrophic 21 | . 1 . . . 1 1 . 2 . . . . 4 . . . . 2 . . . . 1 . 2 . . . . . 2 . . 1 1 3 Database Lockouts 8 | . . . . . . 1 . 1 . . . . . . . . . 1 . . . . . . . . 1 . . 1 . . 2 . 1 . Manual 417 | . 11 . . . 10 27 . 20 . . . . 37 . . . . 41 . . . 5 66 . 47 . 6 . . 21 25 13 25 24 25 14 Terminals 509 | . 25 . . . 11 37 . 19 . . . . 31 . . . . 54 . . . 4 68 . 48 . 6 . . 24 37 20 39 31 33 22 Fabricators 117 | . . . . . . 12 . 9 . . . . 20 . . . . 20 . . . . 16 . 13 . . . . 7 12 4 . . 4 . Repair Stations 44 | . . . . . 5 4 . . . . . . . . . . . 16 . . . . 4 . 5 . . . . 2 2 . 2 2 . 2 Recycling Units 40 | . 4 . . . 3 6 . 1 . . . . 6 . . . . 3 . . . . 6 . 8 . . . . . . . . . 3 . Scanalyzers 61 | . . . . . 10 7 . . . . . . 5 . . . . 6 . . . . 3 . 5 . . . . 2 13 . 5 5 . . Garrison Access 33 | . . . . . 1 4 . 5 . . . . 4 . . . . 6 . . . . 3 . 3 . . . . 2 1 1 1 . 2 . Terminal Hacks 292 | . 13 1 1 . 3 21 . 7 1 . . . 10 . . 20 . 27 1 1 17 2 31 . 20 . 4 . . 13 18 9 26 19 17 10 Record 13 | . . . 1 . . . . . . . . . . . . 7 . . . . 5 . . . . . . . . . . . . . . . Part Schematic 35 | . 1 . . . . 1 . 2 . . . . 4 . . 5 . 2 . . 4 2 4 . 2 . 1 . . 2 2 1 1 . 1 . Robot Schematic 8 | . . . . . . 2 . 1 . . . . . . . 5 . . . . . . . . . . . . . . . . . . . . Robot Analysis 21 | . 2 . . . 1 1 . . . . . . . . . . . 3 . . 4 . . . . . . . . 1 1 . 5 . 3 . Prototype ID Bank 19 | . 3 . . . . 1 . . . . . . 1 . . 3 . 1 . . 4 . . . . . . . . 1 1 . 3 . . 1 Open Door 15 | . . 1 . . . . . . 1 . . . . . . . . . 1 1 . . . . . . 1 . . . . 1 . 5 4 . Level Access Points 1 | . . . . . . . . . . . . . . . . . . . . . . . . . . . . . . . . . . 1 . . Branch Access Points 9 | . . . . . . 1 . 1 . . . . 1 . . . . 1 . . . . . . 1 . . . . 1 . 1 1 . 1 . Machine Index 11 | . . . . . . 1 . 1 . . . . 1 . . . . 1 . . . . 1 . 1 . . . . 1 1 1 1 . 1 . Alert Level 6 | . . . . . . 1 . . . . . . . . . . . 1 . . . . . . . . . . . . 1 . 1 1 1 . Unreport Threat 38 | . 1 . . . 1 4 . . . . . . 1 . . . . 1 . . . . 6 . 6 . . . . 1 2 3 4 4 3 1 Locate Traps 13 | . . . . . . 3 . 1 . . . . . . . . . 1 . . . . 1 . 2 . . . . 1 2 . . 1 . 1 Disarm Traps 7 | . 2 . . . . . . . . . . . . . . . . 1 . . . . 2 . 1 . . . . . . . 1 . . . Reprogram Traps 30 | . . . . . . 1 . . . . . . 1 . . . . 2 . . . . 7 . 1 . . . . 2 3 . 4 4 2 3 Recall Investigation 11 | . . . . . . 1 . . . . . . 1 . . . . 2 . . . . 1 . . . 1 . . 1 . 1 2 . 1 . Recall Extermination 13 | . . . . . . 1 . 1 . . . . . . . . . 5 . . . . 2 . 2 . . . . 1 . . . 1 . . Recall Reinforcements 3 | . . . . . . . . . . . . . . . . . . . . . . . 1 . 2 . . . . . . . . . . . Recall Assault 3 | . . . . . . . . . . . . . . . . . . . . . . . 2 . 1 . . . . . . . . . . . Hauler Manifests 4 | . 1 . . . 1 1 . . . . . . . . . . . 1 . . . . . . . . . . . . . . . . . . Registered Components 5 | . . . . . . 1 . . . . . . . . . . . 1 . . . . 1 . . . . . . . 1 . . . . 1 Registered Prototypes 6 | . . . . . . 1 . . . . . . . . . . . 1 . . . . 1 . . . . . . . 1 1 1 . . . Zone Layout 18 | . 3 . . . . . . . . . . . . . . . . 3 . . . . 2 . 1 . 1 . . 1 2 . 2 2 . 1 Protovariant Controls 1 | . . . . . . . . . . . . . . . . . . . . . . . . . . . . . . . 1 . . . . . Disengage Seal 2 | . . . . . . . . . . . . . . . . . . . . . . . . . . . . . . . . . . . . 2 Fabricator Hacks 72 | . . . . . . 8 . 6 . . . . 11 . . . . 14 . . . . 7 . 10 . . . . 4 6 2 . . 4 . Load Schematic 35 | . . . . . . 3 . 3 . . . . 5 . . . . 6 . . . . 4 . 4 . . . . 3 4 1 . . 2 . Build 37 | . . . . . . 5 . 3 . . . . 6 . . . . 8 . . . . 3 . 6 . . . . 1 2 1 . . 2 . Repair Station Hacks 40 | . . . . . 4 4 . . . . . . . . . . . 13 . . . . 4 . 5 . . . . 2 2 . 2 2 . 2 Scan Component 21 | . . . . . 2 2 . . . . . . . . . . . 7 . . . . 2 . 3 . . . . 1 1 . 1 1 . 1 Repair 18 | . . . . . 2 2 . . . . . . . . . . . 5 . . . . 2 . 2 . . . . 1 1 . 1 1 . 1 Refit 1 | . . . . . . . . . . . . . . . . . . 1 . . . . . . . . . . . . . . . . . . Recycling Unit Hacks 21 | . 1 . . . 1 4 . 1 . . . . 3 . . . . 2 . . . . 3 . 4 . . . . . . . . . 2 . Process 1 | . . . . . . . . . . . . . . . . . . . . . . . . . 1 . . . . . . . . . . . Report Inventory 1 | . . . . . . . . . . . . . . . . . . . . . . . . . 1 . . . . . . . . . . . Retrieve Matter 1 | . . . . . . . . . . . . . . . . . . . . . . . . . 1 . . . . . . . . . . . Retrieve Components 18 | . 1 . . . 1 4 . 1 . . . . 3 . . . . 2 . . . . 3 . 1 . . . . . . . . . 2 . Scanalyzer 58 | . . . . . 10 7 . . . . . . 5 . . . . 6 . . . . 3 . 5 . . . . 2 10 . 5 5 . . Insert Component 33 | . . . . . 5 3 . . . . . . 2 . . . . 3 . . . . 2 . 2 . . . . 1 5 . 5 5 . . Analyze 25 | . . . . . 5 4 . . . . . . 3 . . . . 3 . . . . 1 . 3 . . . . 1 5 . . . . . Garrison Access Hacks 27 | . . . . . . 4 . 4 . . . . 3 . . . . 4 . . . . 3 . 3 . . . . 1 1 1 1 . 2 . Seal Access 27 | . . . . . . 4 . 4 . . . . 3 . . . . 4 . . . . 3 . 3 . . . . 1 1 1 1 . 2 . Unauthorized Hacks 153 | . 1 . . . 3 11 . 6 . . . . 15 . . . . 17 . . . . 28 . 22 . . . . 8 11 4 8 8 7 4 Terminals 105 | . . . . . 1 7 . 3 . . . . 7 . . . . 12 . . . . 17 . 17 . . . . 5 6 4 8 8 6 4 Track 30 | . . . . . . 1 . . . . . . . . . . . 3 . . . . 5 . 9 . . . . . 2 2 2 5 1 . Assimilate 28 | . . . . . . 1 . . . . . . 4 . . . . 4 . . . . 5 . 5 . . . . 1 2 . 4 . 2 . Botnet 37 | . . . . . 1 4 . 3 . . . . 3 . . . . 3 . . . . 3 . 3 . . . . 3 2 2 2 3 3 2 Detonate 5 | . . . . . . . . . . . . . . . . . . . . . . . 3 . . . . . . 1 . . . . . 1 Disrupt 2 | . . . . . . . . . . . . . . . . . . 1 . . . . . . . . . . . . . . . . . 1 Operators 3 | . . . . . . 1 . . . . . . . . . . . 1 . . . . 1 . . . . . . . . . . . . . Fabricators 35 | . . . . . . 4 . 3 . . . . 5 . . . . 5 . . . . 8 . 3 . . . . 3 4 . . . . . Report 4 | . . . . . . 1 . 1 . . . . 1 . . . . . . . . . 1 . . . . . . . . . . . . . Prioritize 1 | . . . . . . . . . . . . . . . . . . . . . . . . . . . . . . . 1 . . . . . Siphon 25 | . . . . . . 2 . 2 . . . . 3 . . . . 5 . . . . 5 . 3 . . . . 3 2 . . . . . Haulers 4 | . . . . . . 1 . . . . . . 1 . . . . . . . . . 1 . . . . . . . 1 . . . . . Overload 1 | . . . . . . . . . . . . . . . . . . . . . . . 1 . . . . . . . . . . . . . Repair Stations . | . . . . . . . . . . . . . . . . . . . . . . . . . . . . . . . . . . . . . Recycling Units 11 | . 1 . . . 1 . . . . . . . 3 . . . . . . . . . 3 . 2 . . . . . . . . . 1 . Recyclers 3 | . . . . . . . . . . . . . 1 . . . . . . . . . 1 . 1 . . . . . . . . . . . Mask 7 | . . . . . 1 . . . . . . . 2 . . . . . . . . . 2 . 1 . . . . . . . . . 1 . Tunnel 1 | . 1 . . . . . . . . . . . . . . . . . . . . . . . . . . . . . . . . . . . Scanalyzers 1 | . . . . . . . . . . . . . . . . . . . . . . . . . . . . . . . 1 . . . . . Researchers 1 | . . . . . . . . . . . . . . . . . . . . . . . . . . . . . . . 1 . . . . . Garrison Access 1 | . . . . . 1 . . . . . . . . . . . . . . . . . . . . . . . . . . . . . . . Reprogram 1 | . . . . . 1 . . . . . . . . . . . . . . . . . . . . . . . . . . . . . . . Data Cores Recovered . | . . . . . . . . . . . . . . . . . . . . . . . . . . . . . . . . . . . . . Used . | . . . . . . . . . . . . . . . . . . . . . . . . . . . . . . . . . . . . . Hacking Detections 173 | . 6 . . . 5 19 . 12 . . . . 14 . . . . 21 . . . 1 19 . 13 . 1 . . 7 12 6 11 7 10 9 Full Trace Events 21 | . 1 . . . 2 1 . . . . . . 3 . . . . 5 . . . . 2 . . . . . . . 1 3 1 1 1 . Feedback Events 5 | . . . . . 1 . . . . . . . 1 . . . . 1 . . . . 1 . . . . . . . . 1 . . . . Corruption 3 | . . . . . 1 . . . . . . . 1 . . . . . . . . . . . . . . . . . . 1 . . . . Hackware Fried 2 | . . . . . . . . . . . . . . . . . . 1 . . . . 1 . . . . . . . . . . . . . Feedback Blocked . | . . . . . . . . . . . . . . . . . . . . . . . . . . . . . . . . . . . . . Robot Schematics Acquired 8 | . . . . . . 2 . 1 . . . . . . . 5 . . . . . . . . . . . . . . . . . . . . Robots Built 6 | . . . . . . 2 . 2 . . . . . . . . . 2 . . . . . . . . . . . . . . . . . . Matter 654 | . . . . . . 164 . 252 . . . . . . . . . 238 . . . . . . . . . . . . . . . . . . Time 352 | . . . . . . 116 . 67 . . . . . . . . . 169 . . . . . . . . . . . . . . . . . . Total Robot Build Rating 26 | . . . . . . 6 . 8 . . . . . . . . . 12 . . . . . . . . . . . . . . . . . . Part Schematics Acquired 54 | . 1 . . . 5 4 . 2 . . . . 5 . . 5 . 5 . . 4 2 5 . 3 . 1 . . 3 6 1 1 . 1 . Parts Built 31 | . . . . . . 3 . 2 . . . . 4 . . . . 6 . . . . 4 . 6 . . . . 1 2 1 . . 2 . Matter 6226 | . . . . . . 636 . 355 . . . . 585 . . . . 1136 . . . . 676 . 1156 . . . . 192 400 417 . . 673 . Time 2578 | . . . . . . 318 . 171 . . . . 334 . . . . 484 . . . . 310 . 618 . . . . 42 111 74 . . 116 . Total Part Build Rating 208 | . . . . . . 18 . 10 . . . . 22 . . . . 37 . . . . 27 . 43 . . . . 8 17 9 . . 17 . Parts Repaired 18 | . . . . . 2 2 . . . . . . . . . . . 5 . . . . 2 . 2 . . . . 1 1 . 1 1 . 1 Time 620 | . . . . . 76 82 . . . . . . . . . . . 139 . . . . 90 . 75 . . . . 54 34 . 22 22 . 26 Parts Recycled . | . . . . . . . . . . . . . . . . . . . . . . . . . . . . . . . . . . . . . Recycled Matter 227 | . . . . . . . . . . . . . . . . . . . . . . . . . 227 . . . . . . . . . . . Retrieved Matter 227 | . . . . . . . . . . . . . . . . . . . . . . . . . 227 . . . . . . . . . . . Retrieved Components 44 | . 4 . . . 9 10 . 6 . . . . 2 . . . . 3 . . . . 8 . 2 . . . . . . . . . . . Parts Scanalyzed 22 | . . . . . 5 3 . . . . . . 2 . . . . 3 . . . . 1 . 2 . . . . 1 5 . . . . . Part Schematics Acquired 21 | . . . . . 5 3 . . . . . . 2 . . . . 3 . . . . 1 . 2 . . . . 1 4 . . . . . Parts Damaged 5 | . . . . . . . . . . . . . 1 . . . . . . . . . . . 2 . . . . . 2 . . . . . Bothacking | -11 -10 -10 -10 -9 -8 -7 -7 -7 -7 -7 -7 -6 -6 -6 -6 -6 -5 -5 -5 -5 -5 -4 -4 -4 -4 -4 -4 -4 -3 -3 -3 -2 -2 -2 -1 -1 ------------ Run | Scr Mat Min Exi Min Mat Fac Was Fac Low Low Zio Pro Fac Low Low Dat Pro Fac Upp Upp Zhi Pro Fac Was Fac Upp Upp War Pro Res Tes Res Qua Sec Acc Com Used RIF Installer . | . . . . . . . . . . . . . . . . . . . . . . . . . . . . . . . . . . . . . Robots Hacked 5 | . . . . . . 1 . . . . . . 2 . . . . . . . . . 1 . . . . . 1 . . . . . . . Non-combat 5 | . . . . . . 1 . . . . . . 2 . . . . . . . . . 1 . . . . . 1 . . . . . . . Combat . | . . . . . . . . . . . . . . . . . . . . . . . . . . . . . . . . . . . . . Robot Hacks Applied 5 | . . . . . . 1 . . . . . . 2 . . . . . . . . . 1 . . . . . 1 . . . . . . . parse_system 1 | . . . . . . . . . . . . . . . . . . . . . . . . . . . . . 1 . . . . . . . no_distress 1 | . . . . . . . . . . . . . 1 . . . . . . . . . . . . . . . . . . . . . . . find_chute 3 | . . . . . . 1 . . . . . . 1 . . . . . . . . . 1 . . . . . . . . . . . . . Relay Couplers Released . | . . . . . . . . . . . . . . . . . . . . . . . . . . . . . . . . . . . . . Robots Rewired 5 | . . . . . . . . . . . . . 1 . . . . . . . . . . . . . . 4 . . . . . . . . Allies Hacked 5 | . . . . . . . . . . 2 . . . . . . . . . . . . . . . . . . . 1 1 . . 1 . . Hacks Repelled . | . . . . . . . . . . . . . . . . . . . . . . . . . . . . . . . . . . . . . Allies | -11 -10 -10 -10 -9 -8 -7 -7 -7 -7 -7 -7 -6 -6 -6 -6 -6 -5 -5 -5 -5 -5 -4 -4 -4 -4 -4 -4 -4 -3 -3 -3 -2 -2 -2 -1 -1 -------- Run | Scr Mat Min Exi Min Mat Fac Was Fac Low Low Zio Pro Fac Low Low Dat Pro Fac Upp Upp Zhi Pro Fac Was Fac Upp Upp War Pro Res Tes Res Qua Sec Acc Com Total Allies 39 | . . . . . . 3 . 2 . 2 5 . 5 . . . . 4 . . . . 4 . 3 . . 4 . 1 1 . 4 . 1 . Largest Group 9 | . . . . . . 2 . 2 2 4 9 9 4 4 2 1 . 2 . . . . 2 1 2 . . 4 4 3 1 . 3 2 1 . Highest-Rated Group 229 | . . . . . . 42 . 76 76 108 229 229 107 107 52 26 . 108 . . . . 70 9 36 . . 211 211 132 44 . 132 88 44 . Highest-Rated Ally 60 | . . . . . . 21 . 38 38 38 33 33 33 29 26 26 . 54 . . . . 44 9 26 . . 60 60 57 44 . 44 44 44 . Total Orders 38 | . . . . . . 2 . . . . . . 5 . . . . . 1 10 . 2 . . 2 . . 2 5 5 2 2 . . . . STAY 13 | . . . . . . 1 . . . . . . 3 . . . . . . . . . . . 1 . . 1 2 4 1 . . . . . GOTO 1 | . . . . . . . . . . . . . . . . . . . . 1 . . . . . . . . . . . . . . . . ROAM 10 | . . . . . . 1 . . . . . . 2 . . . . . . . . . . . 1 . . 1 3 1 1 . . . . . COLLECT 9 | . . . . . . . . . . . . . . . . . . . 1 5 . 1 . . . . . . . . . 2 . . . . EXPLORE 5 | . . . . . . . . . . . . . . . . . . . . 4 . 1 . . . . . . . . . . . . . . Ally Attacks 84 | . . . . . . 2 . 8 . 15 . 27 2 3 . . . 17 . . . . . . . . . . 7 3 . . . . . . Total Damage 2151 | . . . . . . 61 . 141 . 458 . 532 30 59 . . . 494 . . . . . . . . . . 276 100 . . . . . . Kills 13 | . . . . . . . . 2 . 4 . 2 . . . . . 2 . . . . . . . . . . 3 . . . . . . . Allies Corrupted 2 | . . . . . . 1 . . . . . . . . . . . 1 . . . . . . . . . . . . . . . . . . Allies Melted 1 | . . 1 . . . . . . . . . . . . . . . . . . . . . . . . . . . . . . . . . . Intel | -11 -10 -10 -10 -9 -8 -7 -7 -7 -7 -7 -7 -6 -6 -6 -6 -6 -5 -5 -5 -5 -5 -4 -4 -4 -4 -4 -4 -4 -3 -3 -3 -2 -2 -2 -1 -1 ------- Run | Scr Mat Min Exi Min Mat Fac Was Fac Low Low Zio Pro Fac Low Low Dat Pro Fac Upp Upp Zhi Pro Fac Was Fac Upp Upp War Pro Res Tes Res Qua Sec Acc Com Robot Analysis Total 20 | . 2 . . . 1 1 . . . . . . . . . . . 3 . . 4 . . . . . . . . 1 1 . 4 . 3 . Derelict Logs Recovered 16 | . . . . . . . . . 3 1 1 2 . 2 . . . . 1 2 . 1 . . . 1 2 . . . . . . . . . Drone Launches 14 | . . . . . . . . . . . . . . . . . . . 1 9 . 2 . . . . . . . . . 2 . . . . Drone Recoveries 12 | . . . . . . . . . . . . . . . . . . . . 9 . 2 . . . . . . . . . 1 . . . . Exploration | -11 -10 -10 -10 -9 -8 -7 -7 -7 -7 -7 -7 -6 -6 -6 -6 -6 -5 -5 -5 -5 -5 -4 -4 -4 -4 -4 -4 -4 -3 -3 -3 -2 -2 -2 -1 -1 ------------- Run | Scr Mat Min Exi Min Mat Fac Was Fac Low Low Zio Pro Fac Low Low Dat Pro Fac Upp Upp Zhi Pro Fac Was Fac Upp Upp War Pro Res Tes Res Qua Sec Acc Com Turns Passed 27753 | 71 719 117 209 68 1785 2293 36 1743 274 239 429 180 2760 289 312 61 144 3866 301 438 86 432 2069 32 3212 271 383 313 418 598 861 407 601 759 558 419 Spaces Moved 37311 | 44 437 84 160 35 774 3212 129 2916 783 504 825 337 3114 634 530 108 300 4193 604 715 201 347 3501 70 3169 589 790 668 522 872 1205 769 1203 1430 966 571 Core 15 | 3 . . . . . . . . . . . . . . . . . . . . . . . . . . . . . . . . . . . 12 Treads . | . . . . . . . . . . . . . . . . . . . . . . . . . . . . . . . . . . . . . Legs 271 | . . . . . 271 . . . . . . . . . . . . . . . . . . . . . . . . . . . . . . . Wheels 1233 | 41 437 84 160 35 476 . . . . . . . . . . . . . . . . . . . . . . . . . . . . . . . Hover . | . . . . . . . . . . . . . . . . . . . . . . . . . . . . . . . . . . . . . Flight 35792 | . . . . . 27 3212 129 2916 783 504 825 337 3114 634 530 108 300 4193 604 715 201 347 3501 70 3169 589 790 668 522 872 1205 769 1203 1430 966 559 Fastest Speed 26 | 50 90 130 130 130 29 26 26 26 26 26 26 26 26 30 30 30 30 28 34 34 32 32 26 28 28 28 28 28 28 28 27 29 26 29 29 29 Average Speed 32 | 80 116 130 130 130 147 26 26 26 26 26 26 26 27 30 30 30 30 32 34 34 33 32 26 28 28 28 28 28 28 28 29 29 28 29 29 32 Slowest Speed 250 | 90 130 130 130 130 190 26 26 26 26 26 26 26 30 30 30 30 30 37 114 34 108 32 28 28 32 28 28 28 28 32 34 29 29 29 31 250 Overloaded Moves 7 | . . . . . . . . . . . . . . . . . . . . . . . . . . . . . . . . . 5 . . 2 Propulsion Burnouts . | . . . . . . . . . . . . . . . . . . . . . . . . . . . . . . . . . . . . . Robots Hopped 123 | . . . . . . 5 . 19 1 . . . 8 . . 1 2 33 . . . . 10 2 12 . . . . 10 2 1 1 9 2 5 Cave-ins Triggered 1 | . . . . . . . . . . . . . . . . . 1 . . . . . . . . . . . . . . . . . . . Teleports 2 | . . . . . . . . . . . . . . . . . . . . . . . . . . . . . . . . . 1 1 . . Exploration Rate (%) 57 | 4 74 18 54 14 58 63 72 55 82 58 83 41 30 70 63 77 49 71 83 87 60 57 62 86 40 66 89 78 72 15 88 23 85 71 18 24 Regions Visited 36 Branch Regions 23 Pre-discovered Areas 11 | . 1 . 1 . . . . . . . 1 . . 1 . 1 . . . 1 3 . . . . 1 1 . . . . . . . . . Known Exits Taken 26 | . . . . . . . . 1 1 1 1 1 1 1 1 1 1 1 1 1 1 1 . . 1 1 1 1 1 1 1 1 1 1 1 . Unknown Exits Taken 6 | 1 1 1 1 1 1 . . . . . . . . . . . . . . . . . . . . . . . . . . . . . . . Scrap Searched 42 | . . 1 . 1 . . . . 9 5 3 1 . 2 1 . 5 . 3 1 . 3 . . . 2 3 . 2 . . . . . . . Spaces Dug 625 | . . . . . 11 70 . 57 9 . . . 45 13 21 2 18 137 5 6 . 11 37 . 29 2 4 6 3 20 31 20 12 13 17 26 Terrain Destroyed 1220 | . . . . 2 52 70 . 57 9 4 . . 45 13 21 2 18 138 5 6 . 11 365 . 91 63 4 6 36 59 36 20 12 15 17 43 Melee 602 | . . . . . . 70 . 57 9 . . . 45 13 21 2 18 128 5 6 . 11 37 . 29 2 4 6 3 20 31 20 10 12 17 26 Projectile 9 | . . . . . 3 . . . . . . . . . . . . . . . . . . . . . . . . . . . 2 3 . 1 AOE 609 | . . . . 2 49 . . . . 4 . . . . . . . 10 . . . . 328 . 62 61 . . 33 39 5 . . . . 16 Actions | -11 -10 -10 -10 -9 -8 -7 -7 -7 -7 -7 -7 -6 -6 -6 -6 -6 -5 -5 -5 -5 -5 -4 -4 -4 -4 -4 -4 -4 -3 -3 -3 -2 -2 -2 -1 -1 --------- Run | Scr Mat Min Exi Min Mat Fac Was Fac Low Low Zio Pro Fac Low Low Dat Pro Fac Upp Upp Zhi Pro Fac Was Fac Upp Upp War Pro Res Tes Res Qua Sec Acc Com Total 50953 | 65 584 93 161 55 1244 4529 130 3776 837 608 1037 427 4908 715 660 123 329 6455 690 900 218 649 4504 79 5376 676 941 779 779 1159 1599 888 1416 1673 1183 708 Wait 11534 | 5 85 1 . 11 192 1143 2 781 45 100 186 86 1631 63 108 5 6 1995 73 171 . 285 868 11 2078 72 145 84 242 248 280 69 124 128 186 25 Move 37034 | 43 436 83 159 34 773 3202 128 2879 780 503 824 336 3097 633 529 105 294 4127 603 714 200 346 3481 66 3144 588 789 667 521 851 1200 766 1200 1411 961 561 Hop 119 | . . . . . . 5 . 17 1 . . . 8 . . 1 2 32 . . . . 10 1 12 . . . . 10 2 1 1 9 2 5 Pick Up 196 | 4 15 4 1 2 35 12 . 3 . . 6 1 8 . . . . 17 5 1 4 . 9 . 10 . . 1 . 5 12 5 14 13 3 6 Fast Attach 104 | 7 1 . . 1 11 2 . . . . 5 . 3 . . . 2 19 1 2 4 2 4 . 3 . . 6 . 2 7 1 5 14 1 1 Attach 79 | . . . . . 10 3 . . . . 1 . 3 . . . . 6 . . . . 4 . 1 . . . . 4 3 5 9 12 4 14 Detach 36 | . 1 . . . 5 . . . . . . . 2 . . . . 3 . . . . . . 1 . . . . . 5 2 8 7 1 1 Swap 284 | . 5 1 . 2 24 7 . 5 2 3 4 3 29 4 2 4 4 31 2 3 1 3 26 1 32 6 3 1 9 11 21 3 9 16 1 6 Drop 227 | . 4 4 1 3 53 9 . 3 . . 10 1 9 . . . 1 23 1 3 7 2 13 . 12 . . 8 . 3 15 4 16 14 . 8 Fire 239 | 6 37 . . 2 141 . . . . 1 . . . . . . . 2 . . . . 7 . 5 6 . . 3 . 1 . 4 10 . 14 Melee 937 | . . . . . . 91 . 70 9 . 1 . 84 15 21 8 19 187 5 6 2 11 68 . 57 4 4 12 4 25 53 32 19 39 24 67 Ram . | . . . . . . . . . . . . . . . . . . . . . . . . . . . . . . . . . . . . . Kick . | . . . . . . . . . . . . . . . . . . . . . . . . . . . . . . . . . . . . . Crush . | . . . . . . . . . . . . . . . . . . . . . . . . . . . . . . . . . . . . . Escape Stasis 84 | . . . . . . 54 . 18 . . . . . . . . 1 7 . . . . . . 4 . . . . . . . . . . . Rewire 1 | . . . . . . . . . . 1 . . . . . . . . . . . . . . . . . . . . . . . . . . Trap 79 | . . . . . . 1 . . . . . . 34 . . . . 6 . . . . 14 . 17 . . . . . . . 7 . . . Miscellaneous . | . . . . . . . . . . . . . . . . . . . . . . . . . . . . . . . . . . . . . Route ------- -11/Scrapyard -10/Materials (discovered 3 exits: [*Mat x2] / *Min) -10/Mines -10/Exiles (discovered 2 exits: [*Min x2]) -9/Mines -8/Materials (discovered 2 exits: *Fac x2) -7/Factory (discovered 4 exits: *Fac x2 / *Low x2) -7/Waste -7/Factory (discovered 3 exits: *Fac / *Low x2) -7/Lower Caves -7/Lower Caves (discovered 2 exits: *Fac / *Zio) -7/Zion -6/Proximity Caves -6/Factory (discovered 5 exits: Fac / *Low x2 / Ext x2) -6/Lower Caves -6/Lower Caves -6/Data Miner -5/Proximity Caves -5/Factory (discovered 3 exits: *Fac / *Upp x2) -5/Upper Caves -5/Upper Caves (discovered 2 exits: *Fac / *Zhi) -5/Zhirov -4/Proximity Caves -4/Factory (discovered 2 exits: *Res x2) -4/Waste -4/Factory (discovered 4 exits: *Res x2 / *Upp x2) -4/Upper Caves (discovered 2 exits: *Upp / *War) -4/Upper Caves (discovered 2 exits: *Res / *War) -4/Warlord -3/Proximity Caves -3/Research (discovered 3 exits: Arm / *Tes x2) -3/Testing -2/Research (discovered 3 exits: Acc / *Qua x2) -2/Quarantine -2/Section 7 -1/Access (discovered 2 exits: [*Sur] / *Com) -1/Command History --------- Turn | Location | Event 16 | -11/Scrapyard | Discovered new exit (range 15) 72 | -11/Scrapyard | Entered Materials 233 | -10/Materials | Discovered new exit (range 16) 298 | -10/Materials | Discovered new exit (range 11) 324 | -10/Materials | Build established: Mutant 515 | -10/Materials | Discovered new exit (range 17) 791 | -10/Materials | Entered Mines 795 | -10/Mines | Met a Derelict shopkeep closing up shop 798 | -10/Mines | Met a Derelict bent on vengeance 901 | -10/Mines | Deemed a non-threat by the Exiles lab entrance 903 | -10/Mines | Discovered new exit (range 5) 908 | -10/Mines | Entered Exiles 925 | -10/Exiles | Discovered new exit (range 15) 941 | -10/Exiles | Met 8R-AWN 960 | -10/Exiles | Met EX-HEX 1019 | -10/Exiles | Met EX-DEC 1042 | -10/Exiles | Learned location of Zion (-7) 1102 | -10/Exiles | Discovered new exit (range 14) 1117 | -10/Exiles | Entered Mines 1178 | -9/Mines | Discovered new exit (range 6) 1185 | -9/Mines | Entered Materials 1185 | -8/Materials | Evolved 4 slots: Propulsion x1, Utility x3 1527 | -8/Materials | Build established: Hauler-Mutant 1558 | -8/Materials | Discovered new exit (range 16) 1660 | -8/Materials | Repaired Hrd. Medium Armor Plating 1699 | -8/Materials | Repaired Imp. Weapon Shielding 2561 | -8/Materials | Discovered new exit (range 8) 2744 | -8/Materials | Lost 3 parts (1p1u1w) 2970 | -8/Materials | Entered Factory 2970 | -7/Factory | Evolved 2 slots: Propulsion x1, Utility x1 3205 | -7/Factory | Central database locked down 3222 | -7/Factory | Build established: Hacker-Sprinter 3247 | -7/Factory | Repaired Nuclear Pulse Thruster 3333 | -7/Factory | Repaired Hrd. Light Armor Plating 3356 | -7/Factory | Identified exit to Lower Caves 3550 | -7/Factory | Fabricated Adv. Hacking Suite (x1) 3688 | -7/Factory | Discovered new exit (range 6) 4056 | -7/Factory | Fabricated Adv. Hacking Suite? 4556 | -7/Factory | Fabricated Adv. Hacking Suite (x1) 4684 | -7/Factory | Discovered new exit (range 14) 5057 | -7/Factory | Fabricated H-55 Commando? 5239 | -7/Factory | Identified exit to Factory 5263 | -7/Factory | Manually triggered Chute Trap 5263 | -7/Factory | Sucked down chute 5263 | -7/Factory | Entered Waste 5268 | -7/Waste | Spotted C-40 Crusher 5268 | -7/Waste | Spotted C-40 Crusher 5279 | -7/Waste | Spotted C-40 Crusher 5288 | -7/Waste | Spotted C-40 Crusher 5290 | -7/Waste | Spotted C-40 Crusher 5291 | -7/Waste | Spotted C-40 Crusher 5295 | -7/Waste | Discovered new exit (range 16) 5299 | -7/Waste | Identified exit to Factory 5299 | -7/Waste | Entered Factory 5792 | -7/Factory | Discovered exit to Factory (range 5) 5863 | -7/Factory | Fabricated Imp. System Shield? 6338 | -7/Factory | Fabricated Exp. Sensor Array (x1) 6802 | -7/Factory | Local fabrication network quarantined 6827 | -7/Factory | Fabricated P-60 Hacker? 6831 | -7/Factory | Central database locked down 7042 | -7/Factory | Entered Lower Caves 7042 | -7/Lower Caves | Accompanied by 2 allies 7043 | -7/Lower Caves | Encountered a Warlord checkpoint 7097 | -7/Lower Caves | Learned Factory stockpile data 7169 | -7/Lower Caves | Learned location of 1 exit from Factory 7263 | -7/Lower Caves | Learned Factory terminal intel 7292 | -7/Lower Caves | Discovered new exit (range 10) 7311 | -7/Lower Caves | Identified exit to Lower Caves 7316 | -7/Lower Caves | Entered another Lower Caves area 7316 | -7/Lower Caves | Accompanied by 2 allies 7317 | -7/Lower Caves | Encountered a Warlord checkpoint 7399 | -7/Lower Caves | Hacker 4b assimilated hostile HJ-DSU(f) 7432 | -7/Lower Caves | Discovered new exit (range 15) 7512 | -7/Lower Caves | Identified exit to Zion 7555 | -7/Lower Caves | Entered Zion 7555 | -7/Zion | Accompanied by 4 allies 7580 | -7/Zion | Discovered new exit (range 16) 7622 | -7/Zion | Given the Hacking Drone Bay 7623 | -7/Zion | Found Prototype Device 7623 | -7/Zion | Identified Hacking Drone Bay 7671 | -7/Zion | Gained Derelict followers 7705 | -7/Zion | Found Prototype Launcher 7713 | -7/Zion | Identified Rocket Array 7740 | -7/Zion | Found CR-A16's Pointy Stick 7742 | -7/Zion | Revealed the true nature of CR-A1G's Pointy Stick 7868 | -7/Zion | Identified exit to Proximity Caves 7984 | -7/Zion | Entered Proximity Caves 7984 | -6/Proximity Caves | Accompanied by 9 allies 7989 | -6/Proximity Caves | Learned Factory non-interactive machine intel 8033 | -6/Proximity Caves | Spotted B-75 Beast 8063 | -6/Proximity Caves | Allies destroyed B-75 Beast 8120 | -6/Proximity Caves | Learned location of 1 exit from Factory 8145 | -6/Proximity Caves | Discovered exit to Factory (range 3) 8164 | -6/Proximity Caves | Entered Factory 8164 | -6/Factory | Accompanied by 2 allies 8164 | -6/Factory | Evolved 2 slots: Utility x2 8165 | -6/Factory | Identified exit to Factory 8165 | -6/Factory | Identified exit to Extension 8167 | -6/Factory | Loaded intel: 216 non-interactive machine locations 8168 | -6/Factory | Loaded intel: 21 terminal locations 8220 | -6/Factory | Spotted B-75 Beast 8227 | -6/Factory | Destroyed B-75 Beast 8253 | -6/Factory | Discovered new exit (range 14) 8269 | -6/Factory | Identified exit to Lower Caves 8280 | -6/Factory | Found Prototype Processor 8477 | -6/Factory | Build established: Wizard-Sprinter 8722 | -6/Factory | Fabricated Exp. Signal Interpreter? 9064 | -6/Factory | Identified Exp. Terrain Scan Processor 9228 | -6/Factory | Fabricated Nuclear Pulse Array? 10822 | -6/Factory | Fabricated Exp. Terrain Scanner (x1) 10870 | -6/Factory | Local fabrication network quarantined 10924 | -6/Factory | Entered Lower Caves 10924 | -6/Lower Caves | Accompanied by 4 allies 11069 | -6/Lower Caves | Learned Factory emergency access door positions 11153 | -6/Lower Caves | Encountered a Warlord checkpoint 11167 | -6/Lower Caves | Discovered new exit (range 4) 11169 | -6/Lower Caves | Identified exit to Lower Caves 11184 | -6/Lower Caves | Build established: Hacker-Scout 11213 | -6/Lower Caves | Entered another Lower Caves area 11213 | -6/Lower Caves | Accompanied by 2 allies 11475 | -6/Lower Caves | Discovered new exit (range 13) 11485 | -6/Lower Caves | Identified exit to Data Miner 11525 | -6/Lower Caves | Entered Data Miner 11525 | -6/Data Miner | Accompanied by 1 ally 11525 | -6/Data Miner | Discovered new exit (range 6) 11531 | -6/Data Miner | Met Data Miner 11537 | -6/Data Miner | Learned location of Section 7 (-2) 11537 | -6/Data Miner | Acquired the access code to Warlord's prototype stash 11542 | -6/Data Miner | Received God Mode back door access code from Data Miner 11561 | -6/Data Miner | Data Conduit disabled 11585 | -6/Data Miner | Identified exit to Proximity Caves 11586 | -6/Data Miner | Entered Proximity Caves 11702 | -5/Proximity Caves | Crushed by falling debris 11703 | -5/Proximity Caves | Attracted the attention of an 0b10 checkpoint 11725 | -5/Proximity Caves | Discovered exit to Factory (range 8) 11730 | -5/Proximity Caves | Entered Factory 11730 | -5/Factory | Evolved 2 slots: Power x1, Propulsion x1 11807 | -5/Factory | Discovered new exit (range 7) 11820 | -5/Factory | Repaired Lgt. Fission Core? 11859 | -5/Factory | Repaired Insulated Plating? 11905 | -5/Factory | Repaired Imp. VTOL Module 11980 | -5/Factory | Repaired Imp. Transmission Jammer 12003 | -5/Factory | Build established: Hacker-Sprinter 12137 | -5/Factory | Spotted B-75 Beast 12255 | -5/Factory | Fabricated Nuclear Pulse Array (x2) 12357 | -5/Factory | Identified exit to Upper Caves 12777 | -5/Factory | Fabricated Exp. Signal Interpreter? 13303 | -5/Factory | Fabricated Exp. Transmission Jammer? 13784 | -5/Factory | Fabricated Lgt. Neutrino Core? 13822 | -5/Factory | Central database locked down 14214 | -5/Factory | Adv. Hacking Suite fried by hacking feedback 14268 | -5/Factory | Discovered new exit (range 16) 14273 | -5/Factory | Identified exit to Factory 14595 | -5/Factory | Build established: Hacker-Mutant 14869 | -5/Factory | Fabricated P-70 Sage? 15524 | -5/Factory | Repaired Exp. Sensor Array 15544 | -5/Factory | Fabricated Exp. Cesium-ion Thruster (x1) 15596 | -5/Factory | Entered Upper Caves 15768 | -5/Upper Caves | Discovered new exit (range 10) 15771 | -5/Upper Caves | Learned 4 Factory zone layouts 15782 | -5/Upper Caves | Identified exit to Upper Caves 15897 | -5/Upper Caves | Entered another Upper Caves area 15902 | -5/Upper Caves | Discovered exit to Factory (range 5) 15956 | -5/Upper Caves | Learned location of Armory (-3) 16145 | -5/Upper Caves | Encountered a Warlord checkpoint 16316 | -5/Upper Caves | Learned Factory stockpile data 16321 | -5/Upper Caves | Discovered new exit (range 12) 16324 | -5/Upper Caves | Identified exit to Zhirov 16335 | -5/Upper Caves | Entered Zhirov 16335 | -5/Zhirov | Discovered new exit (range 3) 16342 | -5/Zhirov | Met Zhirov 16349 | -5/Zhirov | Learned location of Quarantine (-2) 16349 | -5/Zhirov | Learned location of Testing (-3) 16349 | -5/Zhirov | Learned location of Command (-1) 16351 | -5/Zhirov | Zhirov requested help retrieving the SGEMP Prototype 16357 | -5/Zhirov | Found Alien Artifact 16357 | -5/Zhirov | Identified Integrated Dissipator 16357 | -5/Zhirov | Installed Integrated Dissipator, increased core heat dissipation (+20) 16386 | -5/Zhirov | Found Alien Artifact 16419 | -5/Zhirov | Identified exit to Proximity Caves 16421 | -5/Zhirov | Entered Proximity Caves 16651 | -4/Proximity Caves | Build established: Hacker-Sprinter 16839 | -4/Proximity Caves | Learned Research stockpile data 16843 | -4/Proximity Caves | Discovered exit to Factory (range 12) 16853 | -4/Proximity Caves | Entered Factory 16853 | -4/Factory | Evolved 2 slots: Propulsion x1, Utility x1 17141 | -4/Factory | Build established: Wizard-Sprinter 17150 | -4/Factory | Repaired Lance? 17317 | -4/Factory | Garrison activated, responded to threat 17433 | -4/Factory | Discovered new exit (range 11) 17671 | -4/Factory | Identified Transdimensional Reconstructor 17853 | -4/Factory | First assault squad dispatched 17856 | -4/Factory | Adv. Hacking Suite fried by hacking feedback 17886 | -4/Factory | Fabricated Mni. Smartbomb Launcher? 18087 | -4/Factory | Discovered new exit (range 8) 18089 | -4/Factory | Identified exit to Research 18154 | -4/Factory | Fabricated Field Propulsion Array? 18488 | -4/Factory | Fabricated Exp. System Shield? 18777 | -4/Factory | Repaired Field Propulsion Array 18922 | -4/Factory | Manually triggered Chute Trap 18922 | -4/Factory | Sucked down chute 18922 | -4/Factory | Entered Waste 18925 | -4/Waste | Spotted C-40 Crusher 18928 | -4/Waste | Spotted C-40 Crusher 18936 | -4/Waste | Spotted C-40 Crusher 18937 | -4/Waste | EMP discharged 18937 | -4/Waste | System corruption reached 10% 18937 | -4/Waste | Spotted C-40 Crusher 18938 | -4/Waste | Discovered new exit (range 10) 18940 | -4/Waste | 1 allies followed down the chute 18942 | -4/Waste | Identified exit to Factory 18954 | -4/Waste | Entered Factory 18987 | -4/Factory | Identified exit to Upper Caves 19173 | -4/Factory | Discovered exit to Research (range 4) 19297 | -4/Factory | Repaired Field Propulsion Array 19342 | -4/Factory | Repaired Cld. Nuclear Pulse Thruster 19494 | -4/Factory | Fabricated Exp. Hacking Suite? 20091 | -4/Factory | Fabricated Exp. System Shield (x1) 20170 | -4/Factory | Found Exp. Hacking Suite 20497 | -4/Factory | Fabricated Exp. Hacking Suite? 20581 | -4/Factory | Discovered exit to Research (range 14) 21530 | -4/Factory | Fabricated Enh. Force Lance (x1) 21949 | -4/Factory | Local fabrication network quarantined 21954 | -4/Factory | First assault squad dispatched 22021 | -4/Factory | Fabricated Nanoactuators (x2) 22166 | -4/Factory | Entered Upper Caves 22175 | -4/Upper Caves | A Derelict revealed a hidden shortcut to "reach the base" 22367 | -4/Upper Caves | Encountered a Warlord checkpoint 22381 | -4/Upper Caves | Discovered new exit (range 3) 22381 | -4/Upper Caves | Identified exit to Upper Caves 22437 | -4/Upper Caves | Entered another Upper Caves area 22448 | -4/Upper Caves | Discovered exit to Research (range 7) 22793 | -4/Upper Caves | Discovered new exit (range 12) 22807 | -4/Upper Caves | Learned Research terminal intel 22810 | -4/Upper Caves | Central database locked down 22820 | -4/Upper Caves | Identified exit to Warlord 22820 | -4/Upper Caves | Entered Warlord 22952 | -4/Warlord | Found Prototype Device 22952 | -4/Warlord | Identified Thermal Barrier 22957 | -4/Warlord | Found Prototype Reactor 23080 | -4/Warlord | Discovered new exit (range 12) 23083 | -4/Warlord | Identified exit to Proximity Caves 23133 | -4/Warlord | Entered Proximity Caves 23133 | -3/Proximity Caves | Accompanied by 4 allies 23286 | -3/Proximity Caves | Received a Behemoth hack from an annoying Tinkerer 23527 | -3/Proximity Caves | Discovered exit to Research (range 5) 23551 | -3/Proximity Caves | Entered Research 23551 | -3/Research | Accompanied by 2 allies 23551 | -3/Research | Evolved 2 slots: Utility x2 23553 | -3/Research | Loaded intel: 17 terminal locations 23584 | -3/Research | Identified Vortex Chain Reactor 23596 | -3/Research | Identified exit to Armory 23596 | -3/Research | Identified exit to Testing 23602 | -3/Research | Spotted B-86 Titan 23609 | -3/Research | Destroyed B-86 Titan 23759 | -3/Research | Repaired Cld. Impulse Thruster 23890 | -3/Research | Central database locked down 24068 | -3/Research | Fabricated Impulse Thruster Array? 24149 | -3/Research | Entered Testing 24219 | -3/Testing | Repaired Enh. Force Lance? 24393 | -3/Testing | Fabricated Impulse Thruster Array (x1) 24447 | -3/Testing | Fabricated Adv. Reaction Control System (x1) 24566 | -3/Testing | Discovered new exit (range 21) 24576 | -3/Testing | Found Prototype Device 24576 | -3/Testing | Identified AEGIS Remote Shield 24615 | -3/Testing | Found Prototype Processor 24621 | -3/Testing | Identified Spectral Analyzer 24662 | -3/Testing | Found Prototype Energy Cannon 24662 | -3/Testing | Identified Imp. Potential Cannon 24666 | -3/Testing | Found Imp. Potential Cannon 24702 | -3/Testing | Found Prototype Device 24706 | -3/Testing | Identified Exp. Thermal Defense Suite 24903 | -3/Testing | Protovariant out of control (PH-PLK8NU2XBY) 24903 | -3/Testing | Unleashed a protovariant (PH-PLK8NU2XBY) 24993 | -3/Testing | Identified exit to Research 25010 | -3/Testing | Entered Research 25010 | -2/Research | Evolved 2 slots: Propulsion x1, Utility x1 25118 | -2/Research | Identified exit to Quarantine 25247 | -2/Research | Discovered new exit (range 25) 25307 | -2/Research | Local fabrication network quarantined 25334 | -2/Research | Fabricated Femtoactuators (x1) 25399 | -2/Research | Build established: Wizard-Ninja 25417 | -2/Research | Entered Quarantine 25418 | -2/Quarantine | Warped through subspace 25436 | -2/Quarantine | Found Alien Slashing Weapon 25436 | -2/Quarantine | Identified Sigix Broadsword 25468 | -2/Quarantine | Found Transdimensional Reconstructor 25472 | -2/Quarantine | Found Alien Artifact 25478 | -2/Quarantine | Found Alien Artifact 25481 | -2/Quarantine | Found Alien Artifact 25521 | -2/Quarantine | Central database locked down 25564 | -2/Quarantine | Found Alien Artifact 25663 | -2/Quarantine | Repaired Impulse Thruster Array 25702 | -2/Quarantine | Found Alien Impact Weapon 25767 | -2/Quarantine | Found Alien Artifact 25870 | -2/Quarantine | Identified Hpw. Transdimensional Reconstructor (x2) 25870 | -2/Quarantine | Identified Dimensional Node Initializer 25870 | -2/Quarantine | Identified Core Reset Matrix 25870 | -2/Quarantine | Identified Subatomic Replicator 25870 | -2/Quarantine | Identified Core Stripper 25949 | -2/Quarantine | Spotted Fortress 25959 | -2/Quarantine | Destroyed Fortress 25972 | -2/Quarantine | Found Vortex Chain Reactor 25997 | -2/Quarantine | Discovered new exit (range 6) 25998 | -2/Quarantine | Build established: Wizard-Sprinter 25998 | -2/Quarantine | Identified exit to Section 7 26018 | -2/Quarantine | Entered Section 7 26018 | -2/Section 7 | Accompanied by 2 allies 26088 | -2/Section 7 | Found Integrated Dissipator 26088 | -2/Section 7 | Installed Integrated Dissipator, increased core heat dissipation (+20) 26109 | -2/Section 7 | Found Alien Artifact 26117 | -2/Section 7 | Identified Integrated Reactor 26117 | -2/Section 7 | Installed Integrated Reactor, increased core energy generation (+10) 26146 | -2/Section 7 | Spotted S7 Guard 26151 | -2/Section 7 | Found Alien Artifact 26162 | -2/Section 7 | Identified exit to Access 26281 | -2/Section 7 | Spotted S7 Guard 26282 | -2/Section 7 | Found Alien Artifact 26286 | -2/Section 7 | Identified Integrated Heat Negator 26286 | -2/Section 7 | Identified Integrated Singularity Reactor 26286 | -2/Section 7 | Initialized slip node 26297 | -2/Section 7 | Spotted B-90 Cyclops 26310 | -2/Section 7 | Spotted S7 Guard 26359 | -2/Section 7 | Found Hpw. Transdimensional Reconstructor 26423 | -2/Section 7 | Installed Integrated Singularity Reactor, increased core energy generation (+20) 26424 | -2/Section 7 | Installed Integrated Heat Negator, increased core heat dissipation (+40) 26427 | -2/Section 7 | Found Alien Energy Gun 26428 | -2/Section 7 | Found Alien Energy Gun 26453 | -2/Section 7 | Spotted B-99 Colossus 26470 | -2/Section 7 | Found Alien Artifact 26470 | -2/Section 7 | Identified Core Expander 26470 | -2/Section 7 | Installed Core Expander, added new Propulsion slot 26484 | -2/Section 7 | Found Alien Artifact 26484 | -2/Section 7 | Identified LRC Energy Well 26484 | -2/Section 7 | Installed LRC Energy Well, increased energy storage capacity (+250) 26487 | -2/Section 7 | Found LRC Energy Well 26487 | -2/Section 7 | Installed LRC Energy Well, increased energy storage capacity (+250) 26488 | -2/Section 7 | Found Alien Artifact 26488 | -2/Section 7 | Identified LRC Storage 26488 | -2/Section 7 | Installed LRC Storage, increased inventory capacity (+2) 26520 | -2/Section 7 | Found Core Expander 26592 | -2/Section 7 | Warped through subspace to slip node 26651 | -2/Section 7 | Repaired Impulse Thruster Array 26668 | -2/Section 7 | Found Alien Artifact 26691 | -2/Section 7 | Identified Core Regenerator 26732 | -2/Section 7 | Spotted S7 Guard 26734 | -2/Section 7 | Found Alien Artifact 26760 | -2/Section 7 | Identified Core Membrane 26777 | -2/Section 7 | Entered Access 26777 | -1/Access | Evolved 2 slots: Utility x2 26778 | -1/Access | Installed Core Membrane, gained immunity to corruption 26813 | -1/Access | Identified exit to Command 26948 | -1/Access | Discovered new exit (range 7) 27075 | -1/Access | Fabricated Impulse Thruster Array (x1) 27097 | -1/Access | Build established: Wizard-Ninja 27210 | -1/Access | Fabricated Exp. Armor Integrity Analyzer? 27327 | -1/Access | Central database locked down 27335 | -1/Access | Entered Command 27384 | -1/Command | Disengaged cave seal 27417 | -1/Command | Repaired Exp. Weapon Shielding? 27431 | -1/Command | Disengaged cave seal 27544 | -1/Command | Spotted Combat Programmer 27606 | -1/Command | Phase Generator disabled 27629 | -1/Command | Met MAIN.C 27646 | -1/Command | 0b10 Conduit disabled 27667 | -1/Command | Destroyed MAIN.C Shell 27668 | -1/Command | MAIN.C activated Command garrisons 27692 | -1/Command | Identified Sigix Quantum Sheargun (x2) 27694 | -1/Command | Spotted Combat Programmer 27694 | -1/Command | Spotted M Guard 27695 | -1/Command | Spotted M Guard 27724 | -1/Command | Used Core Regenerator, restored core integrity (+175) 27730 | -1/Command | Failed to warp due to unstable space 27731 | -1/Command | Failed to warp due to unstable space 27733 | -1/Command | Used Subatomic Replicator to replicate Enh. Nova Cannon 27739 | -1/Command | Core integrity fell below 50% 27749 | -1/Command | Core integrity fell below 20% 27754 | -1/Command | Destroyed by MAIN.C with Omega Cannon Last Messages --------------- 27733_ Replicated Enh. Nova Cannon. 27734_ Acquired Enh. Nova Cannon. 27734_ EMDS Slug penetrates 0b10 Conduit. 27734_ EMDS Slug penetrates Reinforced Barrier. 27735_ Enh. Nova Cannon destroyed. 27735_ Gravity Neutralizing Apparatus destroyed. 27738_ Knocked back. 27738_ Penetrated by EMDS Slug. 27741_ EMDS Slug penetrates Reinforced Barrier. 27741_ Acquired Enh. Nova Cannon. 27741_ Critical hit. 27741_ Core Stripper destroyed. 27741_ Knocked back. 27743_ Penetrated by EMDS Slug. 27743_ Core Membrane filtered system corruption (1). 27745_ The unstable cave ceiling collapses. 27749_ Penetrated by EMDS Slug. 27751_ Core Membrane filtered system corruption (1). 27753_ Penetrated by EMDS Slug. 27754_ Enh. Nova Cannon destroyed. Map ----- +----------------------------------------------------+ | ?????????????????????????????????????????????????? | | ?????????????????????????????????????????????????? | | ?????????????????????????????????????????????????? | | ?????????????????????????????????????????????????? | | ?????????????????????????????????????????????????? | | ???????????????######################????????????? | | ??????????????#""""""" """ #????????????? | | ??????????????#"" "" #????????????? | | ??????????????#""""" ############## | | ??????????????# " / | | ??????????????#" / | | ??????????????#"" !*! / | | ??????????????#"" !%! ############## | | ?????????????## [ #????????????? | | ?????????????#" #????????????? | | ?????????????## ""#????????????? | | ??????????????# " ""#????????????? | | ??????????????# " "" ""#????????????? | | ??????????????# " """""""""#????????????? | | ??????????????# " " " " #????????????? | | ??????????????# Y " " " " #????????????? | | ????????????""" p" " " """" " #????????????? | | ????????????" "" " " """" #????????????? | | ?????????????" Y " " " #????????????? | | ?????????????## """ " #????????????? | | ????????????# # M@ """""????????????????? | | ????????????# # pp " #????????????? | | ????????????#?##############;#######?????????????? | | ?????????????????????????????#???????????????????? | | ?????????????????????????????????????????????????? | | ?????????????????????????????????????????????????? | | ?????????????????????????????????????????????????? | | ?????????????????????????????????????????????????? | | ?????????????????????????????????????????????????? | | ?????????????????????????????????????????????????? | | ???????]?????????????????????????????????????????? | | ?????????????????????????????????????????????????? | | ?????????????????????????????????????????????????? | | ?????????????????????????????????????????????????? | | ?????????????????????????????????????????????????? | | ?????????????????????????????????????????????????? | | ?????????????????????????????????????????????????? | | ?????????????????????????????????????????????????? | | ?????????????????????????????????????????????????? | | ?????????????????????????????????????????????????? | | ?????????????????????????????????????????????????? | | ?????????????????????????????????????????????????? | | ?????????????????????????????????????????????????? | | ?????????????????????????????????????????????????? | | ?????????????????????????????????????????????????? | +----------------------------------------------------+ Best States ------------- Heat Dissipation 132 Energy Generation 85 Energy Capacity 2000 Matter Stores 300 Matter Capacity 300 Sight Range 16 Robot Scan Range 30 Terrain Scan Range 30 Terrain Scan Density 1010 Jamming Range 22 Cloak Strength 3 Additional Mass Support 12 Armor Coverage 600 Resistance: EM 15 Weapon Shielding 90 Melee Speed Boost 50 Evasion (%) 78 Armor Integrity Analysis 90 Recoil Reduction 2 Offensive Hacking 62 Defensive Hacking 42 Item Schematics ----------------- Hcp. Storage Unit | -10/Materials | Hacked Adv. Sensor Array | -8/Materials | Scanalyzed Hacking Suite | -8/Materials | Scanalyzed Hrd. Medium Armor Plating | -8/Materials | Scanalyzed Mni. Grenade Launcher | -8/Materials | Scanalyzed Imp. Datajack | -8/Materials | Scanalyzed Adv. Hacking Suite | -7/Factory | Hacked Imp. Cesium-ion Thruster | -7/Factory | Scanalyzed Transmission Jammer | -7/Factory | Scanalyzed Lgt. Angular Momentum Engine | -7/Factory | Scanalyzed Imp. System Shield | -7/Factory | Hacked Exp. Sensor Array | -7/Factory | Hacked Nuclear Pulse Array | -6/Factory | Hacked Exp. Signal Interpreter | -6/Factory | Hacked Gravity Neutralizing Apparatus | -6/Factory | Scanalyzed Exp. Terrain Scan Processor | -6/Factory | Scanalyzed Exp. Terrain Scanner | -6/Factory | Hacked Combat Drone Bay | -6/Data Miner | Free Lgt. Regenerative Plating | -6/Data Miner | Free Cmb. Gravmag System | -6/Data Miner | Free Exp. Cesium-ion Thruster | -6/Data Miner | Free Exp. Transmission Jammer | -6/Data Miner | Free Lgt. Neutrino Core | -5/Factory | Hacked Kinetic Spear | -5/Factory | Hacked Lrg. Storage Unit | -5/Factory | Scanalyzed Cloaking Device | -5/Factory | Scanalyzed Mak. System Restoration Module | -5/Factory | Scanalyzed Assault Drone Bay | -5/Zhirov | Free Exp. Heat Sink | -5/Zhirov | Free Exp. Optical Array | -5/Zhirov | Free Imp. Arc Thrower | -5/Zhirov | Free Mni. Smartbomb Launcher | -4/Proximity Caves | Hacked Field Propulsion Array | -4/Proximity Caves | Hacked Exp. Hacking Suite | -4/Factory | Hacked Nanoactuators | -4/Factory | Hacked Electron Diverter | -4/Factory | Hacked Cld. Nuclear Pulse Thruster | -4/Factory | Scanalyzed Exp. System Shield | -4/Factory | Hacked Enh. Force Lance | -4/Factory | Hacked Mak. Cloaking Device | -4/Factory | Scanalyzed Reaction Control System | -4/Factory | Scanalyzed Adv. Actuator Array | -4/Upper Caves | Hacked Vortex Chain Reactor | -3/Research | Scanalyzed Impulse Thruster Array | -3/Research | Hacked Adv. Reaction Control System | -3/Research | Hacked Exp. Shield Generator | -3/Testing | Hacked Spectral Analyzer | -3/Testing | Scanalyzed Com. Particle Reactor | -3/Testing | Hacked Exp. Thermal Defense Suite | -3/Testing | Scanalyzed Diametric Drive | -3/Testing | Scanalyzed Stealth Drone Bay | -3/Testing | Scanalyzed Femtoactuators | -2/Research | Hacked Exp. Melee Analysis Suite | -2/Quarantine | Hacked Exp. Armor Integrity Analyzer | -1/Access | Hacked Robot Schematics ------------------ S-27 Virus | -7/Factory | Hacked G-47 Trooper | -7/Factory | Hacked P-60 Hacker | -7/Factory | Hacked G-50 Soldier | -6/Data Miner | Free X-72 Disruptor | -6/Data Miner | Free P-70 Sage | -6/Data Miner | Free I-36 Angel | -6/Data Miner | Free I-47 Archangel | -6/Data Miner | Free Fabricated ------------ Adv. Hacking Suite | x1 | -7/Factory Adv. Hacking Suite | x1 | -7/Factory Adv. Hacking Suite | x1 | -7/Factory H-55 Commando | x2 | -7/Factory | Preloaded Imp. System Shield | x1 | -7/Factory Exp. Sensor Array | x1 | -7/Factory P-60 Hacker | x2 | -7/Factory Exp. Signal Interpreter | x1 | -6/Factory Nuclear Pulse Array | x2 | -6/Factory Exp. Terrain Scanner | x1 | -6/Factory Nuclear Pulse Array | x2 | -5/Factory Exp. Signal Interpreter | x1 | -5/Factory Exp. Transmission Jammer | x1 | -5/Factory Lgt. Neutrino Core | x1 | -5/Factory P-70 Sage | x2 | -5/Factory Exp. Cesium-ion Thruster | x1 | -5/Factory Mni. Smartbomb Launcher | x1 | -4/Factory Field Propulsion Array | x2 | -4/Factory Exp. System Shield | x1 | -4/Factory Exp. Hacking Suite | x1 | -4/Factory Exp. System Shield | x1 | -4/Factory Exp. Hacking Suite | x1 | -4/Factory Enh. Force Lance | x1 | -4/Factory Nanoactuators | x2 | -4/Factory Impulse Thruster Array | x1 | -3/Research Impulse Thruster Array | x1 | -3/Testing Adv. Reaction Control System | x1 | -3/Testing Femtoactuators | x1 | -2/Research Impulse Thruster Array | x1 | -1/Access Exp. Armor Integrity Analyzer | x1 | -1/Access Alien Tech Used ----------------- Integrated Dissipator Transdimensional Reconstructor Sigix Broadsword Core Stripper Integrated Reactor Dimensional Node Initializer Integrated Singularity Reactor Integrated Heat Negator Core Expander LRC Energy Well LRC Storage High-powered Transdimensional Reconstructor Core Membrane Sigix Quantum Sheargun Core Regenerator Subatomic Replicator Achievements -------------- Artifact Hunter Challenges ------------ None Game ------ Seed HelicalHypercooledDerivative Manual? 0 Play Time 06:56:42 Cumulative 586.9 hours Start 2020.06.14 @ 13:46:46 End 2020.06.15 @ 02:06:10 Sessions 7 Manual Loads 0 Difficulty Rogue Special Mode None Game No. 429 Rogue 425 Adventurer 4 Explorer 0 Win Type - Total 66 Types 54/5/3/2/2/0/0 Lore% 94 Gallery% 96 Achievement% 96 Wizard Run 0 Options --------- ASCII 0 Keyboard 0 Movement Vi Keybinds 0 Fullscreen 0 Font 16/Terminus Map View 76x50 Tactical HUD 1 Map Filters NONE Filters NONE Steam 1 RUN: 2b9cfc28-6753-4241-a768-75062550ee28